Cogmind - Beta 11 X10 @@@ ROGUE MODE // 2022.02.27 @ 18:20:06 Player: aoemica Result: Escaped singularity! Performance ------------- Evolutions (9) 4500 Regions Visited (35) 7000 Robots Destroyed (105) 525 Value Destroyed (4436) 4436 Prototype IDs (115) 2300 Alien Tech Used (12) 2400 Bonus (44655) 44655 TOTAL SCORE: 65816 Bonus ------- Pacifist 200 High Alert Combat Kills 32 Follower Combat Kills 1482 Network Hubs Disabled 200 Met Imprinter 300 Met Zhirov 300 Met Warlord at Base 500 MAIN.C Attacked Warlord 500 Warlord Defense Kill 3538 Built Enhanced Grunts 300 Met R17 at Cetus 500 Found Hidden Lab 3000 Used Core Reset Matrix 3000 Met R17 at Research 2000 Met Warlord at Research 2000 Pursued by Intercept 1000 Destroyed MAIN.C Guards 500 Destroyed MAIN.C Shell 5000 Destroyed MAIN.C 10000 Met Warlord at Command 2000 Met Architect 300 Destroyed A8 300 Destroyed A6 400 Destroyed Architect 15000 Win 3000 Friendly Fire -10697 Cogmind --------- Core Integrity 1116/1600 Matter 155/300 Energy 99/100 System Corruption 7% Temperature Cool (0) Movement Core (50) Location Near Former Tau Ceti IV Parts ------- > --- POWER (2) -------- (None) > --- PROPULSION (7) --- (None) > --- UTILITY (13) ----- (None) > --- WEAPON (4) ------- (None) > --- INVENTORY (5) ---- Vortex Chain Reactor Advanced Phase Shifter Stealth Drone Bay (2/2) Peak State ------------ > --- POWER ------------ Vortex Chain Reactor > --- PROPULSION ------- High-density Centrium Heavy Treads Enhanced Biometal Leg High-density Centrium Leg High-density Centrium Leg Experimental Biometal Leg Experimental Biometal Leg > --- UTILITY ---------- Advanced Power Amplifier Large Storage Unit Spectral Analyzer Experimental Targeting Computer Experimental Targeting Computer Experimental Core Analyzer Experimental Core Analyzer Advanced Weapon Cycler Centrium Medium Armor Plating Experimental Powered Armor AEGIS Remote Shield Matter Drive > --- WEAPON ----------- Improved Potential Cannon Sigix Broadsword > --- INVENTORY -------- Vortex Chain Reactor High-density Centrium Leg Advanced Energy Well Experimental Matter Compressor Advanced Phase Shifter Experimental Powered Armor Stealth Drone Bay Stealth Drone Bay L-Cannon [Rating: 272] Favorites ----------- Power Micro Fission Core Engine Light Deuterium Engine Power Core Micro Fission Core Reactor Micro Antimatter Reactor Propulsion Improved VTOL Module Treads High-density Centrium Heavy Treads Leg High-density Centrium Leg Flight Unit Improved VTOL Module Utility Experimental Terrain Scan Processor Device Experimental Sensor Array Storage Medium Storage Unit Processor Experimental Terrain Scan Processor Hackware Advanced Hacking Suite Protection Hardened Light Armor Plating Artifact Matter Drive Weapon Katana Energy Gun Heavy Quantum Rifle Energy Cannon Improved Potential Cannon Ballistic Gun Light Assault Rifle Ballistic Cannon Blast Cannon Launcher Mini Grenade Launcher Special Weapon RU-N14's Throwing Claymores v3 Impact Weapon Maul Slashing Weapon Katana Piercing Weapon Vortex Lance Special Melee Weapon Improved Datajack Build | -11 -10 -10 -9 -8 -7 -7 -7 -7 -6 -6 -6 -6 -6 -6 -5 -5 -5 -5 -5 -5 -4 -4 -4 -4 -4 -3 -3 -3 -3 -2 -2 -2 -1 -1 -1 ------- Run | Scr Mat Min Mat Mat Fac Low Low Zio Pro Fac Ext Cet Arc Hub Fac Was Fac Upp Upp War Pro Fac Upp Upp Zhi Pro Res Arm Lab Res Qua Sec Acc Com Ac0 Slots Evolved 18 | . . . 2 2 2 . . . . 2 . . . . 2 . . . . . . 2 . . . . 2 . . 2 . . 2 . . Power . | . . . . . . . . . . . . . . . . . . . . . . . . . . . . . . . . . . . . Propulsion 5 | . . . 2 . . . . . . . . . . . 1 . . . . . . 1 . . . . . . . . . . 1 . . Utility 11 | . . . . 2 2 . . . . 2 . . . . 1 . . . . . . 1 . . . . 2 . . . . . 1 . . Weapon 2 | . . . . . . . . . . . . . . . . . . . . . . . . . . . . . . 2 . . . . . Parts Attached 467 | . . 4 19 7 11 7 2 13 4 10 15 5 8 21 5 . 4 2 4 16 5 18 6 5 5 8 13 4 7 15 7 16 3 178 20 Power 22 | . . . . . 1 1 . 1 . 3 3 1 2 . . . 1 . . . . 1 1 . . . 1 1 1 . . . . 4 . Engine 5 | . . . . . 1 1 . 1 . 2 . . . . . . . . . . . . . . . . . . . . . . . . . Core 13 | . . . . . . . . . . 1 3 1 2 . . . 1 . . . . 1 1 . . . . 1 1 . . . . 1 . Reactor 4 | . . . . . . . . . . . . . . . . . . . . . . . . . . . 1 . . . . . . 3 . Propulsion 68 | . . . 8 5 2 . . 4 . 1 2 . 1 . 2 . . . . 1 . 1 . . 3 . . . . . . . 1 37 . Treads 13 | . . . 5 . . . . . . . . . . . . . . . . . . . . . . . . . . . . . . 8 . Leg 16 | . . . 2 . . . . . . . . . . . . . . . . . . . . . . . . . . . . . . 14 . Wheel . | . . . . . . . . . . . . . . . . . . . . . . . . . . . . . . . . . . . . Hover . | . . . . . . . . . . . . . . . . . . . . . . . . . . . . . . . . . . . . Flight 39 | . . . 1 5 2 . . 4 . 1 2 . 1 . 2 . . . . 1 . 1 . . 3 . . . . . . . 1 15 . Utility 295 | . . 4 1 2 6 6 2 7 4 5 10 4 3 21 3 . 3 2 3 6 2 16 3 1 2 4 9 3 2 15 4 13 2 116 11 Device 202 | . . 3 1 . 3 5 1 3 2 2 9 2 1 19 2 . 2 2 3 6 2 11 3 1 2 4 7 2 1 12 3 9 . 74 5 Storage 14 | . . . . . . . . . . . . . . . . . . . . . . 2 . . . . 1 1 . . . . . 9 1 Processor 25 | . . 1 . . 2 . . 3 . 1 . . . . . . . . . . . 1 . . . . . . . . . . . 17 . Hackware 9 | . . . . 1 . . 1 . . 1 . 1 2 . . . . . . . . 1 . . . . . . . 1 . . 1 . . Protection 38 | . . . . 1 1 1 . 1 2 1 1 1 . 2 1 . 1 . . . . 1 . . . . 1 . . 2 1 3 . 16 1 Artifact 7 | . . . . . . . . . . . . . . . . . . . . . . . . . . . . . 1 . . 1 1 . 4 Weapon 82 | . . . 10 . 2 . . 1 . 1 . . 2 . . . . . 1 9 3 . 2 4 . 4 3 . 4 . 3 3 . 21 9 Energy Gun 3 | . . . . . . . . . . . . . . . . . . . . . . . . . . . . . 1 . . . . 2 . Energy Cannon 24 | . . . . . . . . . . . . . 1 . . . . . . . 1 . 1 2 . 2 1 . 1 . 1 1 . 7 6 Ballistic Gun 6 | . . . 4 . . . . . . . . . . . . . . . . . . . . . . . . . . . . . . 2 . Ballistic Cannon 4 | . . . . . . . . . . . . . . . . . . . . . . . . . . . . . . . . . . 4 . Launcher 5 | . . . 3 . . . . 1 . . . . 1 . . . . . . . . . . . . . . . . . . . . . . Special Weapon 11 | . . . . . . . . . . . . . . . . . . . . 5 1 . . . . . . . . . 1 1 . 3 . Impact Weapon 4 | . . . 3 . 1 . . . . . . . . . . . . . . . . . . . . . . . . . . . . . . Slashing Weapon 18 | . . . . . 1 . . . . 1 . . . . . . . . . 1 1 . 1 2 . 2 1 . . . 1 1 . 3 3 Piercing Weapon 6 | . . . . . . . . . . . . . . . . . . . . 3 . . . . . . 1 . 2 . . . . . . Special Melee Weapon 1 | . . . . . . . . . . . . . . . . . . . 1 . . . . . . . . . . . . . . . . Unidentified Prototypes 70 | . . 1 1 1 1 . 1 4 . . . 1 1 . . . . . . 5 . 1 . . 2 . . 1 6 . 2 . . 42 . Parts Lost 11 | . . 1 . 1 . . . . 2 . . . . . . . . . . . . . . . . . . . 1 . . . . 6 . Power 1 | . . . . . . . . . 1 . . . . . . . . . . . . . . . . . . . . . . . . . . Propulsion 1 | . . . . . . . . . . . . . . . . . . . . . . . . . . . . . . . . . . 1 . Utility 9 | . . 1 . 1 . . . . 1 . . . . . . . . . . . . . . . . . . . 1 . . . . 5 . Weapon . | . . . . . . . . . . . . . . . . . . . . . . . . . . . . . . . . . . . . Highest Loss Streak 3 | . . 1 . 1 . . . . 1 . . . . . . . . . . . . . . . . . . . 1 . . . . 3 . To Critical Strikes . | . . . . . . . . . . . . . . . . . . . . . . . . . . . . . . . . . . . . Average Slot Usage (%) 85 | . 28 46 70 79 92 96 99 88 91 94 98 87 98 100 100 100 92 94 99 95 100 99 100 100 100 100 99 100 94 83 79 82 81 67 79 Engine 1 | . . . . . 5 4 7 6 6 6 5 . . . . . . . . . . . . . . . . . . . . . . . . Core 4 | . . . . . . . . . . 3 5 6 10 12 11 11 10 11 11 11 11 9 10 10 10 10 6 4 4 4 4 4 3 2 . Reactor 1 | . . . . . . . . . . . . . . . . . . . . . . . . . . . 1 4 4 4 4 4 3 2 3 Treads 1 | . . . 25 15 . . . . . . . . . . . . . . . . . . . . . . . . . . . . . 1 3 Leg 2 | . 28 28 18 . . . . . . . . . . . . . . . . . . . . . . . . . . . . . . 3 19 Flight 22 | . . . . 20 29 30 29 26 28 25 24 25 25 25 27 27 27 27 27 27 27 30 30 30 30 30 27 27 27 25 25 25 26 16 . Device 9 | . . 8 9 7 10 14 14 9 6 6 6 6 6 6 11 11 9 11 11 8 11 9 10 10 10 10 18 17 15 7 5 11 11 8 14 Storage 1 | . . . . . . . . . . . . . . . . . . . . . . 4 5 5 5 5 4 4 4 4 4 4 3 3 3 Processor 15 | . . 9 11 9 13 15 14 21 28 25 24 18 18 18 16 16 16 16 16 16 16 15 15 15 15 15 13 13 13 12 12 12 11 12 18 Hackware 9 | . . . . 7 7 7 7 7 7 9 12 12 17 18 16 16 16 16 16 16 16 15 15 15 15 15 13 13 13 12 12 12 12 5 . Protection 3 | . . . . 1 6 7 7 3 . 6 6 6 6 5 5 5 4 5 5 5 5 4 5 5 5 5 3 4 4 . 2 . . 1 6 Launcher 1 | . . . 2 9 . . . 3 7 6 6 6 5 6 5 5 . . . . . . . . . . . . . . . . . . . Slashing Weapon 4 | . . . . . 5 7 7 7 7 5 6 6 6 6 5 5 5 5 5 3 4 5 4 4 5 4 2 . . . 3 4 3 2 2 Piercing Weapon 1 | . . . . . . . . . . . . . . . . . . . . 1 5 5 5 5 5 5 5 9 6 8 . . . . . Naked Turns 3 | . . . . . . . . . . . . . . . . . . . . . . . . . . . . . . . . . . . 3 Heaviest Build 169 | . . 1 4 7 15 17 15 15 13 21 21 24 24 22 21 21 20 22 23 32 32 36 34 32 34 40 40 43 50 50 59 79 46 136 169 Greatest Support 150 | 3 3 10 3 15 20 20 20 20 20 21 21 21 22 22 27 27 27 27 27 30 30 40 38 38 40 40 40 43 56 56 56 56 47 150 150 Greatest Overweight (x) 29 | . . . 1 . . . . 2 . . . 1 1 1 . . 1 . . 1 1 1 . . . . . . 1 . 1 1 . 29 1 Average Overweight (x) . | . . . . . . . . . . . . . . . . . . . . . . . . . . . . . . . . . . . . Largest Inventory Capacity 15 | 5 5 5 5 5 5 5 5 5 5 5 5 5 5 5 5 5 5 5 5 5 5 10 10 10 10 10 10 10 10 10 10 10 10 15 15 Average Capacity 8 | 5 5 5 5 5 5 5 5 5 5 5 5 5 5 5 5 5 5 5 5 5 5 9 10 10 10 10 10 10 10 10 10 10 10 11 14 Most Carried 15 | 5 5 5 5 5 5 5 5 5 5 5 5 5 5 5 5 5 5 5 5 5 5 10 10 10 10 10 10 10 10 10 10 10 9 15 15 Average Carried 7 | 4 4 5 4 5 4 4 5 4 4 4 5 4 4 4 4 5 5 5 5 4 4 9 9 10 9 10 9 9 6 10 9 9 7 8 14 Final Capacity 15 | 5 5 5 5 5 5 5 5 5 5 5 5 5 5 5 5 5 5 5 5 5 5 10 10 10 10 10 10 10 10 10 10 10 10 15 5 Final Carried 15 | 4 5 5 5 5 5 5 5 5 4 5 5 5 5 5 5 5 5 5 5 5 5 10 10 10 10 10 10 9 10 10 10 10 7 15 5 Class Distribution -------------------- 31% | Hacker-Scout 12% | Hacker-Sprinter 11% | Hacker-Ninja 7% | Scout 6% | Alien-Mutant 5% | Scavenger-Scout 5% | Alien-Scout 4% | Alien-Ninja 4% | Alien-Assassin 3% | Mutant Dominant Class ---------------- Mutant | -10/Materials Mutant | -10/Mines Mutant | -9/Materials Sprinter | -8/Materials Scavenger-Scout | -7/Factory Scavenger-Scout | -7/Lower Caves Scavenger-Scout | -7/Lower Caves Scout | -7/Zion Scout | -6/Proximity Caves Hacker-Scout | -6/Factory Hacker-Scout | -6/Extension Commander-Sprinter | -6/Cetus Hacker-Scout | -6/Archives Hacker-Scout | -6/Hub_04(d) Hacker-Scout | -5/Factory Hacker-Scout | -5/Waste Hacker-Scout | -5/Factory Hacker-Scout | -5/Upper Caves Hacker-Scout | -5/Upper Caves Hacker-Scout | -5/Warlord Hacker-Scout | -4/Proximity Caves Hacker-Scout | -4/Factory Hacker-Scout | -4/Upper Caves Hacker-Scout | -4/Upper Caves Hacker-Scout | -4/Zhirov Hacker-Scout | -3/Proximity Caves Hacker-Ninja | -3/Research Hacker-Ninja | -3/Armory Hacker-Ninja | -3/Lab Hacker-Scout | -2/Research Hacker-Sprinter | -2/Quarantine Hacker-Sprinter | -2/Section 7 Hacker-Ninja | -1/Access Alien-Scout | -1/Command Alien-Mutant | -1/Access_0 Resources | -11 -10 -10 -9 -8 -7 -7 -7 -7 -6 -6 -6 -6 -6 -6 -5 -5 -5 -5 -5 -5 -4 -4 -4 -4 -4 -3 -3 -3 -3 -2 -2 -2 -1 -1 -1 ----------- Run | Scr Mat Min Mat Mat Fac Low Low Zio Pro Fac Ext Cet Arc Hub Fac Was Fac Upp Upp War Pro Fac Upp Upp Zhi Pro Res Arm Lab Res Qua Sec Acc Com Ac0 Matter Collected 4841 | 184 . 32 115 . 316 70 30 31 124 105 160 70 120 210 50 . 27 45 60 150 54 262 96 65 . 139 140 . . 172 . 32 . 1955 27 Remotely 10 | . . . . . . . . . . . . . . . . . . . . . . . . . . . . . . . . . . 10 . Salvage Created 4185 | . . . 150 . 270 80 . . 129 256 339 74 108 55 119 . 27 11 29 468 . 500 51 . . 103 177 . . 172 . 32 . 500 535 Parts 205 | . . . 16 . 13 6 . . 5 12 22 3 6 3 6 . 1 . 2 21 . 13 . . . 9 12 . . 16 . 2 . 15 22 Haulers Intercepted 9 | . . . 1 . 3 . . . . 2 . . . . . . . . . . . 2 . . . . 1 . . . . . . . . Recyclers Shooed 3 | . . . . . . . . . . 2 . . . . . . . . . . . 1 . . . . . . . . . . . . . Parts Field Recycled . | . . . . . . . . . . . . . . . . . . . . . . . . . . . . . . . . . . . . Retrieved Matter . | . . . . . . . . . . . . . . . . . . . . . . . . . . . . . . . . . . . . Parts Self-Destructed 49 | . . . . . . 9 . 1 7 . . . . . . . . . 2 23 . . . . . 7 . . . . . . . . . Prevented 3 | . . . . . . . . . . . . . . . . . . . . 3 . . . . . . . . . . . . . . . Kills | -11 -10 -10 -9 -8 -7 -7 -7 -7 -6 -6 -6 -6 -6 -6 -5 -5 -5 -5 -5 -5 -4 -4 -4 -4 -4 -3 -3 -3 -3 -2 -2 -2 -1 -1 -1 ------- Run | Scr Mat Min Mat Mat Fac Low Low Zio Pro Fac Ext Cet Arc Hub Fac Was Fac Upp Upp War Pro Fac Upp Upp Zhi Pro Res Arm Lab Res Qua Sec Acc Com Ac0 Combat Hostiles Destroyed 61 | . . . 7 . . . . . . . 8 . . 1 . . . . . 30 . 1 . . . . . . . 2 . 1 . 1 10 Melee 9 | . . . . . . . . . . . 4 . . . . . . . . . . 1 . . . . . . . 2 . 1 . 1 . Cannons 9 | . . . . . . . . . . . . . . . . . . . . 3 . . . . . . . . . . . . . . 6 AOE 42 | . . . 7 . . . . . . . 4 . . 1 . . . . . 27 . . . . . . . . . . . . . . 3 Classes Destroyed 18 | . . . 4 . 2 1 . . 1 . 2 . 1 . . . . . . 6 . . . . . 1 . . . . . . . . . Worker 5 | . . . . . 1 . . . . 1 . . . . . . . . . . . . . . . . 1 . . 2 . . . . . Builder 4 | . . . 1 . . . . . . 3 . . . . . . . . . . . . . . . . . . . . . . . . . Hauler 9 | . . . 1 . 3 . . . . 2 . . . . . . . . . . . 2 . . . . 1 . . . . . . . . Recycler 5 | . . . 1 . . . . . . . . . . . 1 . . . . . . 2 . . . . . . . . . . . 1 . Minesweeper 4 | . . . . . . 3 . . . . . . . . . . . . 1 . . . . . . . . . . . . . . . . Operator 4 | . . . . . . . . . . . . . 3 . . . . . . . . . . . . . . . . . . . . 1 . Watcher 11 | . . . . . 3 . . . . . 1 . . . . . 1 . . . . . . . . 2 2 . . 1 . . . 1 . Swarmer 16 | . . . 7 . . . . . . . 4 . . . . . . . . 2 . 1 . . . . . . . . . 1 . 1 . Saboteur 3 | . . . . . . . . . . . . . . . . . . . . 3 . . . . . . . . . . . . . . . Grunt 17 | . . . . . . . . . . . 2 . . 1 . . . . . 14 . . . . . . . . . . . . . . . Protector 1 | . . . . . . . . . . . . . . . . . . . . 1 . . . . . . . . . . . . . . . Sentry 2 | . . . . . . . . . . . 2 . . . . . . . . . . . . . . . . . . . . . . . . Hunter 2 | . . . . . . . . . . . . . . . . . . . . 2 . . . . . . . . . . . . . . . Programmer 4 | . . . . . . . . . . . . . . . . . . . . 2 . . . . . . . . . 2 . . . . . Behemoth 4 | . . . . . . . . . . . . . . . . . . . . 4 . . . . . . . . . . . . . . . Enhanced Grunt 7 | . . . . . . . . . . . . . . . . . . . . . . . . . . . . . . . . . . . 7 Executioner 2 | . . . . . . . . . . . . . . . . . . . . 2 . . . . . . . . . . . . . . . Decomposer 1 | . . . . . . . . . . . . . . . . . . 1 . . . . . . . . . . . . . . . . . Packrat 1 | . . . . . . . . . . . . . . . . . . . . . . . 1 . . . . . . . . . . . . Samaritan 3 | . . . . . . . . . 3 . . . . . . . . . . . . . . . . . . . . . . . . . . Tinkerer 1 | . . . . . . . . . . . . . . . . . . . . . . . . . . 1 . . . . . . . . . Best Kill Streak 9 | . . . 5 . 2 3 . . . 4 4 . 3 1 1 . 1 . 1 9 . 2 . . . 2 4 . . 3 . 1 . 1 6 Combat Bots Only 9 | . . . 4 . . . . . . . 4 . . 1 . . . . . 9 . 1 . . . . . . . 2 . 1 . 1 6 Max Kills in Single Turn 8 | . . . 3 . 1 1 . . 1 1 3 1 1 1 1 . 1 1 1 8 . 1 1 . . 1 1 . . 1 . 1 . 1 1 Gunslinging . | . . . . . . . . . . . . . . . . . . . . . . . . . . . . . . . . . . . . Exploded 7 | . . . 3 . . . . . . . 3 . . 1 . . . . . 7 . . . . . . . . . . . . . . 1 Melee 1 | . . . . . . . . . . . 1 . . . . . . . . . . 1 . . . . . . . 1 . 1 . 1 . Uniques/NPCs Destroyed 5 | . . . . . . . . . . . . 1 . . . . . . . . . . . . . . . . . . . . . 1 3 A7 (-6/Cetus) Warlord (-1/Command) A8 (-1/Access_0) A6 (-1/Access_0) Architect (-1/Access_0) Combat | -11 -10 -10 -9 -8 -7 -7 -7 -7 -6 -6 -6 -6 -6 -6 -5 -5 -5 -5 -5 -5 -4 -4 -4 -4 -4 -3 -3 -3 -3 -2 -2 -2 -1 -1 -1 -------- Run | Scr Mat Min Mat Mat Fac Low Low Zio Pro Fac Ext Cet Arc Hub Fac Was Fac Upp Upp War Pro Fac Upp Upp Zhi Pro Res Arm Lab Res Qua Sec Acc Com Ac0 Damage Taken 5217 | . . 35 304 117 . . 26 . 121 95 71 38 . 170 . . . 28 . 22 . 249 . . . 67 62 25 129 25 . 412 74 845 2302 Core 640 | . . 10 73 45 . . . . 14 21 3 11 . 57 . . . . . . . 40 . . . 22 . . 27 . . 21 . 185 111 Absorbed by Shields 1888 | . . . . . . . . . . . 19 35 . . . . . . . . . . . . . . . . . . . . . . 1834 Reduced by Siege Mode 34 | . . . . . . . . . . . . . . . . . . . . . . . . . . . . . . . . . . . 34 Regen/Repaired (Parts) 1453 | . . . . . . . . . . 46 68 . . . . . 152 . . . . 177 . . . . 68 . . . . 251 65 149 477 Core Remaining (%) 90 | 100 . 96 81 91 . . . . 98 . . . . 89 . . . . . . 100 . . . . 94 . . 92 . . 86 . . 69 Volleys Fired 103 | . . . 5 . . . . . 2 . 4 1 . . . . . . . 21 3 . 2 2 . 3 2 . . . 3 . . 8 47 Largest 1 | . . . 1 . . . . . 1 . 1 1 . . . . . . . 1 1 . 1 1 . 1 1 . . . 1 . . 1 1 Hottest 900 | . . . 30 . . . . . 30 . 30 30 . . . . . . . . 98 . 105 105 . 105 105 . . . 120 . . 900 900 Shots Fired 104 | . . . 5 . . . . . 2 . 4 1 . . . . . . . 21 3 . 2 2 . 3 2 . . . 3 . . 9 47 Gun 1 | . . . . . . . . . . . . . . . . . . . . . . . . . . . . . . . . . . 1 . Cannon 70 | . . . . . . . . . . . . . . . . . . . . . 3 . 2 2 . 3 2 . . . 3 . . 8 47 Launcher 12 | . . . 5 . . . . . 2 . 4 1 . . . . . . . . . . . . . . . . . . . . . . . Special 21 | . . . . . . . . . . . . . . . . . . . . 21 . . . . . . . . . . . . . . . Kinetic 3 | . . . . . . . . . . . . . . . . . . . . . . . . . . . . . . . . . . 3 . Thermal 68 | . . . . . . . . . . . . . . . . . . . . . 3 . 2 2 . 3 2 . . . 3 . . 6 47 Explosive 33 | . . . 5 . . . . . 2 . 4 1 . . . . . . . 21 . . . . . . . . . . . . . . . Electromagnetic . | . . . . . . . . . . . . . . . . . . . . . . . . . . . . . . . . . . . . Robot Hit Streak 17 | . . . 1 . . . . . . . . . . . . . . . . 6 . . . . . . . . . . . . . 3 17 Robot Miss Streak 3 | . . . 1 . . . . . . . . . . . . . . . . 1 . . . . . . . . . . . . . 1 3 Penetration Max 3 | . . . . . . . . . . . . . . . . . . . . . . . . . . . . . . . . . . 3 . Secondary Targets . | . . . . . . . . . . . . . . . . . . . . . . . . . . . . . . . . . . . . Shots Hit Robots 158 | . . . 4 . 13 4 . . 3 19 5 18 4 1 1 . 2 1 1 8 . 6 1 . . 6 4 . . 7 . 2 . 15 33 Core Hits 157 | . . . 12 . 5 1 . . 2 3 14 5 2 1 1 . . . 1 58 . 4 . . . 3 3 . . 4 . 1 . 5 32 Critical Kills 1 | . . . . . 1 . . . . . . . . . . . . . . . . . . . . . . . . . . . . . . Critical Parts Destroyed 1 | . . . . . 1 . . . . . . . . . . . . . . . . . . . . . . . . . . . . . . Critical Strikes 6 | . . . . . 2 . . . . 1 . 1 . 1 . . . . . . . . . . . . 1 . . . . . . . . Smash 2 | . . . . . 2 . . . . . . . . . . . . . . . . . . . . . . . . . . . . . . Sever 3 | . . . . . . . . . . 1 . 1 . 1 . . . . . . . . . . . . . . . . . . . . . Impale 1 | . . . . . . . . . . . . . . . . . . . . . . . . . . . 1 . . . . . . . . Melee Attacks 362 | . . . 4 . 18 13 23 . 17 31 10 18 4 7 7 . 5 1 11 5 17 25 6 5 . 13 22 11 9 18 1 15 4 41 1 Impact 7 | . . . 4 . 3 . . . . . . . . . . . . . . . . . . . . . . . . . . . . . . Slashing 289 | . . . . . 15 13 23 . 17 31 10 18 4 7 7 . 5 1 11 4 15 20 4 4 . 10 8 . . . 1 15 4 41 1 Piercing 38 | . . . . . . . . . . . . . . . . . . . . . . . . . . . 9 8 9 12 . . . . . Entropic 28 | . . . . . . . . . . . . . . . . . . . . 1 2 5 2 1 . 3 5 3 . 6 . . . . . Sneak Attacks 69 | . . . 2 . 5 3 . . 3 9 3 18 3 . 1 . 1 1 1 . . 4 1 . . 1 2 . . 3 . . . 8 . Combat Hostiles 4 | . . . . . . . . . . . 3 . . . . . . . . . . . . . . . . . . 1 . . . . . Follow-up Attacks 3 | . . . . . . . . . . . . . . . . . . . . . . 1 . . . 1 . . . 1 . . . . . Damage Inflicted 26113 | . . 2 629 . 896 357 . . 317 1343 675 1372 443 42 87 . 138 101 104 6326 . 530 98 . . 326 391 . . 826 . 150 . 2699 8261 Guns . | . . . . . . . . . . . . . . . . . . . . . . . . . . . . . . . . . . . . Cannons 4588 | . . . . . . . . . . . . . . . . . . . . . . . . . . . . . . . . . . . 4588 Explosions 10323 | . . . 349 . . . . . . . 302 94 . . . . . . . 5905 . . . . . . . . . . . . . . 3673 Melee 10779 | . . . 280 . 896 357 . . 317 1343 373 1278 443 42 87 . 138 101 104 . . 530 98 . . 326 391 . . 826 . 150 . 2699 . Ramming 2 | . . 2 . . . . . . . . . . . . . . . . . . . . . . . . . . . . . . . . . Kinetic . | . . . . . . . . . . . . . . . . . . . . . . . . . . . . . . . . . . . . Thermal 8261 | . . . . . . . . . . . . . . . . . . . . . . . . . . . . . . . . . . . 8261 Explosive 6650 | . . . 349 . . . . . . . 302 94 . . . . . . . 5905 . . . . . . . . . . . . . . . Electromagnetic . | . . . . . . . . . . . . . . . . . . . . . . . . . . . . . . . . . . . . Impact 590 | . . . 280 . 310 . . . . . . . . . . . . . . . . . . . . . . . . . . . . . . Slashing 9222 | . . . . . 586 357 . . 317 1343 373 1278 443 42 87 . 138 101 104 421 . 436 98 . . 249 . . . . . 150 . 2699 . Piercing 691 | . . . . . . . . . . . . . . . . . . . . . . . . . . . 391 . . 300 . . . . . Entropic 697 | . . . . . . . . . . . . . . . . . . . . . . 94 . . . 77 . . . 526 . . . . . Highest Corruption 12 | . . . . . . . . . . . . . . . . 5 5 5 5 5 . 1 1 1 1 1 . . . . . . . 12 7 Average Corruption 6 | . . . . . . . . . . . . . . . . 5 5 5 5 5 . 1 1 1 1 1 . . . . . . . 7 7 Corruption Purged 7 | . . . . . . . . . . . . . . . . . . . . . . . . . . . . . . . . . . 7 . Corruption Blocked 25 | . . . . . . . . . . . . . . . . . . . . . . . . . . . . . . 25 . . . . . Effects 196 | . . . . . . . . . . . . . . . . . 7 . 6 1 . 1 3 1 1 1 . . . . . . . 159 16 Message Errors 51 | . . . . . . . . . . . . . . . . . 2 . 3 . . 1 1 . 1 . . . . . . . . 41 2 Matter Fused 54 | . . . . . . . . . . . . . . . . . 3 . 1 . . . 2 1 . 1 . . . . . . . 38 8 Heat Flow Errors 21 | . . . . . . . . . . . . . . . . . . . . . . . . . . . . . . . . . . 20 1 Energy Discharges 26 | . . . . . . . . . . . . . . . . . 1 . 1 . . . . . . . . . . . . . . 22 2 Data Loss (minor) 25 | . . . . . . . . . . . . . . . . . . . 1 1 . . . . . . . . . . . . . 22 1 Data Loss (major) 11 | . . . . . . . . . . . . . . . . . 1 . . . . . . . . . . . . . . . . 10 . Misfires 2 | . . . . . . . . . . . . . . . . . . . . . . . . . . . . . . . . . . 1 1 Alerts 4 | . . . . . . . . . . . . . . . . . . . . . . . . . . . . . . . . . . 4 . Misdirections 1 | . . . . . . . . . . . . . . . . . . . . . . . . . . . . . . . . . . 1 . Weapon Failures 1 | . . . . . . . . . . . . . . . . . . . . . . . . . . . . . . . . . . . 1 Overload Shots . | . . . . . . . . . . . . . . . . . . . . . . . . . . . . . . . . . . . . Overflow Damage 3329 | . . . 167 . 166 160 . . 60 542 . 126 83 . . . 98 86 . 49 . 139 85 . . 57 123 . . 290 . 26 . 391 681 Projectiles 546 | . . . . . . . . . . . . . . . . . . . . 49 . . . . . . . . . . . . . . 497 Explosions 203 | . . . 7 . . . . . . . . 12 . . . . . . . . . . . . . . . . . . . . . . 184 Melee 2580 | . . . 160 . 166 160 . . 60 542 . 114 83 . . . 98 86 . . . 139 85 . . 57 123 . . 290 . 26 . 391 . Knockbacks 1 | . . . 1 . . . . . . . . . . . . . . . . . . . . . . . . . . . . . . . . Impact 1 | . . . 1 . . . . . . . . . . . . . . . . . . . . . . . . . . . . . . . . Kinetic . | . . . . . . . . . . . . . . . . . . . . . . . . . . . . . . . . . . . . Secondary . | . . . . . . . . . . . . . . . . . . . . . . . . . . . . . . . . . . . . Self-Inflicted Damage 89 | . . . . . . . . . . . . . . . . . . . . . . . . . . . . . . . . . . . 89 Shots 1 | . . . . . . . . . . . . . . . . . . . . . . . . . . . . . . . . . . . 1 Rammed . | . . . . . . . . . . . . . . . . . . . . . . . . . . . . . . . . . . . . Targets Rammed 1 | . . 1 . . . . . . . . . . . . . . . . . . . . . . . . . . . . . . . . . Kicked 1 | . . 1 . . . . . . . . . . . . . . . . . . . . . . . . . . . . . . . . . Crushed . | . . . . . . . . . . . . . . . . . . . . . . . . . . . . . . . . . . . . Highest Temperature 420 | . . . 2 . 420 . 5 . . 24 8 3 . 9 12 12 16 56 20 104 230 157 160 185 110 104 124 182 198 . . 201 198 198 178 Average Temperature 46 | . . . 2 . 113 . 3 . . 12 4 2 . 3 5 6 6 27 7 39 40 43 62 55 66 44 29 49 31 . . 96 91 44 109 Received Heat Transfer 414 | . . 9 111 27 . . 12 . 27 36 15 8 . 81 . . . . . . . 46 . . . . 24 . . . . 18 . . . Effects 1 | . . . . . . . . . . . . . . . . . . . . . . . . . . . . . . . . 1 . . . Energy Bleed 1 | . . . . . . . . . . . . . . . . . . . . . . . . . . . . . . . . 1 . . . Siege Activations 6 | . . . . . . . . . . . . . . . . . . . . . . . . . . . . . . . . . . 2 4 Total Turns 115 | . . . . . . . . . . . . . . . . . . . . . . . . . . . . . . . . . . 68 47 Longest Duration 67 | . . . . . . . . . . . . . . . . . . . . . . . . . . . . . . . . . . 67 17 Robots Corrupted . | . . . . . . . . . . . . . . . . . . . . . . . . . . . . . . . . . . . . Combat Hostiles . | . . . . . . . . . . . . . . . . . . . . . . . . . . . . . . . . . . . . Parts Fried 4 | . . . 2 . 2 . . . . . . . . . . . . . . . . . . . . . . . . . . . . . . Impact Corruptions 5 | . . . 3 . 2 . . . . . . . . . . . . . . . . . . . . . . . . . . . . . . Robots Melted . | . . . . . . . . . . . . . . . . . . . . . . . . . . . . . . . . . . . . Combat Hostiles . | . . . . . . . . . . . . . . . . . . . . . . . . . . . . . . . . . . . . Parts Melted 1 | . . . . . . . . . . . . . . . . . . . . . . . . . . . . . . . . . . . 1 Heat Transferred 2722 | . . . . . . . . . . . . . . . . . . . . . . . . . . . . . . . . . . . 2722 Parts Sabotaged . | . . . . . . . . . . . . . . . . . . . . . . . . . . . . . . . . . . . . Parts Stolen 1 | . . . . . . 1 . . . . . . . . . . . . . . . . . . . . . . . . . . . . . Parts Stripped . | . . . . . . . . . . . . . . . . . . . . . . . . . . . . . . . . . . . . Power Chain Reactions . | . . . . . . . . . . . . . . . . . . . . . . . . . . . . . . . . . . . . Missiles Intercepted . | . . . . . . . . . . . . . . . . . . . . . . . . . . . . . . . . . . . . Alert | -11 -10 -10 -9 -8 -7 -7 -7 -7 -6 -6 -6 -6 -6 -6 -5 -5 -5 -5 -5 -5 -4 -4 -4 -4 -4 -3 -3 -3 -3 -2 -2 -2 -1 -1 -1 ------- Run | Scr Mat Min Mat Mat Fac Low Low Zio Pro Fac Ext Cet Arc Hub Fac Was Fac Upp Upp War Pro Fac Upp Upp Zhi Pro Res Arm Lab Res Qua Sec Acc Com Ac0 Peak Influence 702 | . 15 42 481 275 336 . . . . 121 316 665 443 543 237 65 98 . . . . 299 . . . . 135 297 . 175 146 366 606 702 . Initial 266 | . . 5 12 202 124 . . . . 21 30 136 266 32 205 35 45 . . . . . . . . . 6 18 . . 98 76 228 . . Average 158 | . 3 30 210 247 243 . . . . 43 126 389 262 330 199 41 69 . . . . 135 . . . . 17 165 . 97 135 192 425 42 . Maximum Alert Level 4 | . . . 2 1 1 . . . . . 1 2 2 2 1 . . . . . . 1 . . . . . 1 . . . 1 2 4 . Low Security (%) 43 | 100 100 100 58 . 30 . . . . 100 65 11 21 24 15 100 100 . . . . 79 . . . . 100 67 . 100 100 46 2 18 . Level 1 17 | . . . 20 100 69 . . . . . 34 49 54 22 84 . . . . . . 20 . . . . . 32 . . . 53 33 . . Level 2 6 | . . . 21 . . . . . . . . 39 24 52 . . . . . . . . . . . . . . . . . . 64 . . Level 3 . | . . . . . . . . . . . . . . . . . . . . . . . . . . . . . . . . . . . . Level 4 33 | . . . . . . . . . . . . . . . . . . . . . . . . . . . . . . . . . . 80 . Level 5 . | . . . . . . . . . . . . . . . . . . . . . . . . . . . . . . . . . . . . High Security . | . . . . . . . . . . . . . . . . . . . . . . . . . . . . . . . . . . . . Max Security . | . . . . . . . . . . . . . . . . . . . . . . . . . . . . . . . . . . . . Squads Dispatched 41 | . 1 . 3 1 3 . . . . 1 1 . . 4 . . . . . . . 2 . . . . 8 3 . 1 4 5 . 4 . Investigation 7 | . . . . . 1 . . . . . 1 . . 1 . . . . . . . . . . . . 2 . . . 1 . . 1 . Extermination 7 | . . . . . . . . . . . . . . 1 . . . . . . . 1 . . . . . 1 . . 1 1 . 2 . Reinforcement 24 | . 1 . 3 1 2 . . . . 1 . . . 2 . . . . . . . 1 . . . . 6 2 . . 2 2 . 1 . Assault . | . . . . . . . . . . . . . . . . . . . . . . . . . . . . . . . . . . . . Garrison . | . . . . . . . . . . . . . . . . . . . . . . . . . . . . . . . . . . . . Intercept 3 | . . . . . . . . . . . . . . . . . . . . . . . . . . . . . . 1 . 2 . . . Construction Impeded . | . . . . . . . . . . . . . . . . . . . . . . . . . . . . . . . . . . . . Haulers Reinforced 6 | . . . . . 2 . . . . 1 . . . . . . . . . . . . . . . . 3 . . . . . . . . Active Scanning Responses . | . . . . . . . . . . . . . . . . . . . . . . . . . . . . . . . . . . . . Cargo Convoy Interrupts . | . . . . . . . . . . . . . . . . . . . . . . . . . . . . . . . . . . . . Stealth | -11 -10 -10 -9 -8 -7 -7 -7 -7 -6 -6 -6 -6 -6 -6 -5 -5 -5 -5 -5 -5 -4 -4 -4 -4 -4 -3 -3 -3 -3 -2 -2 -2 -1 -1 -1 --------- Run | Scr Mat Min Mat Mat Fac Low Low Zio Pro Fac Ext Cet Arc Hub Fac Was Fac Upp Upp War Pro Fac Upp Upp Zhi Pro Res Arm Lab Res Qua Sec Acc Com Ac0 Distress Signals 48 | . . . 2 . . . . . . . 1 2 1 2 . . . . . 1 . . . . . . 11 1 . 3 2 2 1 19 . Communications Jammed 22 | . . . . . . . . . . . . . . . . . . . . . . . . . . 13 . . . . . . 5 4 . Distress Signals 22 | . . . . . . . . . . . . . . . . . . . . . . . . . . 13 . . . . . . 5 4 . Times Spotted 331 | . 2 5 24 6 4 1 7 . 11 4 19 18 3 39 2 2 1 1 . 26 4 16 3 . . 6 22 5 4 2 3 27 23 15 26 Peak Tracking Total 18 | . 1 3 6 4 2 1 6 . 6 3 9 5 1 12 2 2 1 1 . 11 4 9 2 . . 4 8 2 4 2 1 18 12 3 5 Tactical Retreats 46 | . . 1 5 . . . 3 . 2 . 2 . . 14 . . . 1 . . 1 3 2 . . . 1 1 1 . . 2 4 2 1 Traps | -11 -10 -10 -9 -8 -7 -7 -7 -7 -6 -6 -6 -6 -6 -6 -5 -5 -5 -5 -5 -5 -4 -4 -4 -4 -4 -3 -3 -3 -3 -2 -2 -2 -1 -1 -1 ------- Run | Scr Mat Min Mat Mat Fac Low Low Zio Pro Fac Ext Cet Arc Hub Fac Was Fac Upp Upp War Pro Fac Upp Upp Zhi Pro Res Arm Lab Res Qua Sec Acc Com Ac0 Traps Triggered 18 | . . . . . 1 . . . . 1 3 . . . 2 . . . . . . 2 . . . . 3 . . . . . 2 4 . Indirectly . | . . . . . . . . . . . . . . . . . . . . . . . . . . . . . . . . . . . . Trap Hack Attempts . | . . . . . . . . . . . . . . . . . . . . . . . . . . . . . . . . . . . . Triggered . | . . . . . . . . . . . . . . . . . . . . . . . . . . . . . . . . . . . . Disarmed . | . . . . . . . . . . . . . . . . . . . . . . . . . . . . . . . . . . . . Reprogrammed 4 | . . . . . . . . . . . . . . . . . . . . . . . . . . . . . . . . . . 4 . Reused 6 | . . . . . . . . . . . 1 . . 2 . . . . . . . . . . . . . . . . . . . 3 . Traps Extracted . | . . . . . . . . . . . . . . . . . . . . . . . . . . . . . . . . . . . . Installed 4 | . . . . . . . . . . . 1 . . 3 . . . . . . . . . . . . . . . . . . . . . Triggered 14 | . . . . . . . . . . . 1 . . 2 . . . . . 8 . . . . . . . . . . . . . 3 . Most Traps Carried 6 | . . . . . . 6 6 6 6 6 6 5 5 5 2 2 2 2 6 6 . . . . . . . . . . . . . . . Machines | -11 -10 -10 -9 -8 -7 -7 -7 -7 -6 -6 -6 -6 -6 -6 -5 -5 -5 -5 -5 -5 -4 -4 -4 -4 -4 -3 -3 -3 -3 -2 -2 -2 -1 -1 -1 ---------- Run | Scr Mat Min Mat Mat Fac Low Low Zio Pro Fac Ext Cet Arc Hub Fac Was Fac Upp Upp War Pro Fac Upp Upp Zhi Pro Res Arm Lab Res Qua Sec Acc Com Ac0 Machines Disabled 41 | . . . . . 1 . . . . . 1 . 1 . . . . . . 2 . . . . . 1 . 5 3 1 1 4 1 13 7 Max in Single Turn 6 | . . . . . 1 . . . . . 1 . . . . . . . . 1 . . . . . 1 . 1 1 1 1 1 1 6 1 Garrison Access 5 | . . . . . 1 . . . . 1 . . . . 1 . . . . . . 1 . . . . . . . . 1 . . . . Phase Generator 1 | . . . . . . . . . . . . . . . . . . . . . . . . . . . . . . . . . . 1 . Network Hub 1 | . . . . . . . . . . . . . . 1 . . . . . . . . . . . . . . . . . . . . . Machines Sabotaged . | . . . . . . . . . . . . . . . . . . . . . . . . . . . . . . . . . . . . Garrisons Compromised . | . . . . . . . . . . . . . . . . . . . . . . . . . . . . . . . . . . . . Overloaded Fab Kills . | . . . . . . . . . . . . . . . . . . . . . . . . . . . . . . . . . . . . Hacking | -11 -10 -10 -9 -8 -7 -7 -7 -7 -6 -6 -6 -6 -6 -6 -5 -5 -5 -5 -5 -5 -4 -4 -4 -4 -4 -3 -3 -3 -3 -2 -2 -2 -1 -1 -1 --------- Run | Scr Mat Min Mat Mat Fac Low Low Zio Pro Fac Ext Cet Arc Hub Fac Was Fac Upp Upp War Pro Fac Upp Upp Zhi Pro Res Arm Lab Res Qua Sec Acc Com Ac0 Machines Accessed 115 | . . 1 3 2 9 1 . . . 13 16 1 . 4 4 . 3 1 . 6 . 10 1 . 4 1 5 7 1 3 3 5 3 8 . Terminals 74 | . . 1 3 2 6 . . . . 5 15 1 . 4 2 . 2 1 . . . 3 . . . 1 4 5 . 2 2 4 3 8 . Fabricators 7 | . . . . . 1 . . . . 2 . . . . 1 . . . . . . 1 . . . . . 2 . . . . . . . Repair Stations 9 | . . . . . 1 . . . . 2 1 . . . . . 1 . . . . 3 . . . . 1 . . . . . . . . Recycling Units 2 | . . . . . . . . . . 2 . . . . . . . . . . . . . . . . . . . . . . . . . Scanalyzers 4 | . . . . . . . . . . 1 . . . . . . . . . . . 2 . . . . . . . . . 1 . . . Garrison Access 6 | . . . . . 1 . . . . 1 . . . . 1 . . . . . . 1 . . . . . . . 1 1 . . . . Total Hacks 443 | . . 4 16 7 44 1 . . . 25 37 2 . 15 14 . 17 1 . 19 . 43 1 . 17 2 17 51 2 17 10 6 40 35 . Successful 281 | . . 3 11 3 21 1 . . . 15 24 1 . 8 9 . 11 1 . 19 . 26 1 . 17 1 9 26 2 8 3 6 25 30 . Failed 161 | . . 1 5 4 23 . . . . 10 13 1 . 7 5 . 6 . . . . 17 . . . 1 8 25 . 9 7 . 14 5 . Catastrophic 11 | . . . . . 2 . . . . . . . . . . . . . . . . . . . . . 1 3 . . . . 3 2 . Database Lockouts 1 | . . . . . . . . . . . . . . . . . . . . . . . . . . . . . . . . . 1 . . Manual 214 | . . 4 11 3 32 . . . . 14 15 1 . 6 8 . 4 . . . . 18 . . . . 7 31 . 3 5 . 38 14 . Terminals 318 | . . 4 16 7 34 . . . . 11 33 2 . 15 8 . 9 1 . . . 14 . . . 2 15 44 . 15 9 4 40 35 . Fabricators 26 | . . . . . 5 . . . . 3 . . . . 5 . . . . . . 6 . . . . . 7 . . . . . . . Repair Stations 35 | . . . . . 1 . . . . 5 4 . . . . . 8 . . . . 15 . . . . 2 . . . . . . . . Recycling Units 4 | . . . . . . . . . . 4 . . . . . . . . . . . . . . . . . . . . . . . . . Scanalyzers 8 | . . . . . . . . . . 1 . . . . . . . . . . . 5 . . . . . . . . . 2 . . . Garrison Access 12 | . . . . . 4 . . . . 1 . . . . 1 . . . . . . 3 . . . . . . . 2 1 . . . . Terminal Hacks 168 | . . 2 6 . 13 1 . . . 2 14 1 . 5 3 . 3 1 . 19 . 3 1 . 17 1 5 15 2 7 . 4 23 20 . Record 20 | . . . . . . . . . . . . . . . . . . 1 . 12 . . . . 5 . . . 1 1 . . . . . Part Schematic 4 | . . . . . . . . . . . . . . . . . . . . . . . . . 4 . . . . . . . . . . Robot Analysis 19 | . . 2 1 . . . . . . . . . . . . . . . . . . . . . 4 . . . . . . . 11 1 . Prototype ID Bank 31 | . . . 2 . 7 . . . . . . . . . . . 1 . . 6 . . . . 4 . 1 4 . 1 . . 2 3 . Open Door 19 | . . . . . . 1 . . . . 9 1 . . . . . . . 1 . . 1 . . 1 . . . . . 4 1 . . Open DSF 1 | . . . . . . . . . . . . . . . 1 . . . . . . . . . . . . . . . . . . . . Level Access Points 1 | . . . . . . . . . . . . . . 1 . . . . . . . . . . . . . . . . . . . . . Branch Access Points 6 | . . . . . 1 . . . . . . . . . . . 1 . . . . 1 . . . . 1 . . 1 . . 1 . . Emergency Access Points 7 | . . . 1 . . . . . . . . . . . . . . . . . . . . . . . . 2 . . . . . 4 . Machine Index 2 | . . . . . . . . . . . . . . . . . . . . . . 1 . . . . . . . . . . . 1 . Terminal Index 2 | . . . . . . . . . . . . . . . . . . . . . . . . . . . 1 1 . . . . . . . Alert Level 9 | . . . . . . . . . . . 2 . . 1 1 . 1 . . . . . . . . . 1 1 . . . . 1 1 . Unreport Threat 9 | . . . . . . . . . . . 1 . . . 1 . . . . . . . . . . . . . . . . . 7 . . Locate Traps 8 | . . . 1 . 2 . . . . 1 . . . . . . . . . . . . . . . . . 1 . . . . . 3 . Reprogram Traps 1 | . . . . . . . . . . . . . . . . . . . . . . . . . . . . . . . . . . 1 . Maintenance Status 2 | . . . . . . . . . . . 1 . . . . . . . . . . . . . . . . 1 . . . . . . . Security Status 2 | . . . . . . . . . . . . . . . . . . . . . . . . . . . . 1 . . . . . 1 . Surveillance Status 1 | . . . . . . . . . . . . . . . . . . . . . . . . . . . . . . . . . . 1 . Patrol Status 7 | . . . . . 1 . . . . . . . . . . . . . . . . . . . . . . 2 . 1 . . . 3 . Transport Status 1 | . . . . . . . . . . . . . . . . . . . . . . . . . . . . . . 1 . . . . . Recall Investigation 1 | . . . . . . . . . . . . . . 1 . . . . . . . . . . . . . . . . . . . . . Recall Extermination 2 | . . . . . . . . . . . . . . . . . . . . . . 1 . . . . . 1 . . . . . . . Recall Reinforcements 3 | . . . . . 1 . . . . . . . . 2 . . . . . . . . . . . . . . . . . . . . . Hauler Manifests 3 | . . . . . 1 . . . . 1 . . . . . . . . . . . . . . . . 1 . . . . . . . . Zone Layout 5 | . . . 1 . . . . . . . 1 . . . . . . . . . . . . . . . . 1 . 2 . . . . . Disengage Seal 1 | . . . . . . . . . . . . . . . . . . . . . . . . . . . . . . . . . . 1 . Gate Test 138-A 1 | . . . . . . . . . . . . . . . . . . . . . . . . . . . . . 1 . . . . . . Fabricator Hacks 5 | . . . . . . . . . . . . . . . 1 . . . . . . 1 . . . . . 3 . . . . . . . Network Status 4 | . . . . . . . . . . . . . . . 1 . . . . . . 1 . . . . . 2 . . . . . . . Build 1 | . . . . . . . . . . . . . . . . . . . . . . . . . . . . 1 . . . . . . . Repair Station Hacks 24 | . . . . . . . . . . 2 4 . . . . . 6 . . . . 10 . . . . 2 . . . . . . . . Scan Component 12 | . . . . . . . . . . 1 2 . . . . . 3 . . . . 5 . . . . 1 . . . . . . . . Repair 11 | . . . . . . . . . . 1 2 . . . . . 3 . . . . 4 . . . . 1 . . . . . . . . Refit 1 | . . . . . . . . . . . . . . . . . . . . . . 1 . . . . . . . . . . . . . Recycling Unit Hacks . | . . . . . . . . . . . . . . . . . . . . . . . . . . . . . . . . . . . . Scanalyzer 6 | . . . . . . . . . . 1 . . . . . . . . . . . 3 . . . . . . . . . 2 . . . Insert Component 6 | . . . . . . . . . . 1 . . . . . . . . . . . 3 . . . . . . . . . 2 . . . Garrison Access Hacks 5 | . . . . . 1 . . . . 1 . . . . 1 . . . . . . 1 . . . . . . . . 1 . . . . Seal Access 5 | . . . . . 1 . . . . 1 . . . . 1 . . . . . . 1 . . . . . . . . 1 . . . . Unauthorized Hacks 73 | . . 1 5 3 7 . . . . 9 6 . . 3 4 . 2 . . . . 8 . . . . 2 8 . 1 2 . 2 10 . Terminals 60 | . . 1 5 3 6 . . . . 3 6 . . 3 2 . 2 . . . . 6 . . . . 2 6 . 1 2 . 2 10 . Track 9 | . . . 2 . . . . . . . 1 . . . . . . . . . . 2 . . . . . 1 . . . . . 3 . Assimilate 11 | . . . . 1 . . . . . 1 2 . . 2 . . . . . . . 1 . . . . . . . . 1 . . 3 . Botnet 27 | . . . 2 2 4 . . . . 2 1 . . 1 1 . 1 . . . . 2 . . . . 1 3 . 1 1 . 2 3 . Disrupt 3 | . . 1 . . . . . . . . 1 . . . . . . . . . . . . . . . . 1 . . . . . . . Operators 10 | . . . 1 . 2 . . . . . 1 . . . 1 . 1 . . . . 1 . . . . 1 1 . . . . . 1 . Fabricators 9 | . . . . . 1 . . . . 2 . . . . 2 . . . . . . 2 . . . . . 2 . . . . . . . Report 3 | . . . . . . . . . . . . . . . 1 . . . . . . 1 . . . . . 1 . . . . . . . Haulers 6 | . . . . . 1 . . . . 2 . . . . 1 . . . . . . 1 . . . . . 1 . . . . . . . Repair Stations . | . . . . . . . . . . . . . . . . . . . . . . . . . . . . . . . . . . . . Recycling Units 4 | . . . . . . . . . . 4 . . . . . . . . . . . . . . . . . . . . . . . . . Reject 1 | . . . . . . . . . . 1 . . . . . . . . . . . . . . . . . . . . . . . . . Recyclers 1 | . . . . . . . . . . 1 . . . . . . . . . . . . . . . . . . . . . . . . . Mask 2 | . . . . . . . . . . 2 . . . . . . . . . . . . . . . . . . . . . . . . . Scanalyzers . | . . . . . . . . . . . . . . . . . . . . . . . . . . . . . . . . . . . . Garrison Access . | . . . . . . . . . . . . . . . . . . . . . . . . . . . . . . . . . . . . Data Cores Recovered . | . . . . . . . . . . . . . . . . . . . . . . . . . . . . . . . . . . . . Used . | . . . . . . . . . . . . . . . . . . . . . . . . . . . . . . . . . . . . Hacking Detections 72 | . . 1 3 2 7 . . . . 9 10 . . 4 1 . 2 . . . . 7 . . . 1 4 6 . 3 2 . 3 7 . Full Trace Events 1 | . . . . 1 . . . . . . . . . . . . . . . . . . . . . . . . . . . . . . . Feedback Events . | . . . . . . . . . . . . . . . . . . . . . . . . . . . . . . . . . . . . Feedback Blocked . | . . . . . . . . . . . . . . . . . . . . . . . . . . . . . . . . . . . . Robot Schematics Acquired . | . . . . . . . . . . . . . . . . . . . . . . . . . . . . . . . . . . . . Robots Built 2 | . . . . . . . . . . . . . . . . . . . . . . . . . . . . 2 . . . . . . . Authchips . | . . . . . . . . . . . . . . . . . . . . . . . . . . . . . . . . . . . . Time 84 | . . . . . . . . . . . . . . . . . . . . . . . . . . . . 84 . . . . . . . Total Robot Build Rating 12 | . . . . . . . . . . . . . . . . . . . . . . . . . . . . 12 . . . . . . . Part Schematics Acquired 4 | . . . . . . . . . . . . . . . . . . . . . . . . . 4 . . . . . . . . . . Parts Built . | . . . . . . . . . . . . . . . . . . . . . . . . . . . . . . . . . . . . Authchips . | . . . . . . . . . . . . . . . . . . . . . . . . . . . . . . . . . . . . Time . | . . . . . . . . . . . . . . . . . . . . . . . . . . . . . . . . . . . . Total Part Build Rating . | . . . . . . . . . . . . . . . . . . . . . . . . . . . . . . . . . . . . Parts Repaired 11 | . . . . . . . . . . 1 2 . . . . . 3 . . . . 4 . . . . 1 . . . . . . . . Time 384 | . . . . . . . . . . 19 120 . . . . . 98 . . . . 131 . . . . 16 . . . . . . . . Parts Recycled . | . . . . . . . . . . . . . . . . . . . . . . . . . . . . . . . . . . . . Recycled Matter . | . . . . . . . . . . . . . . . . . . . . . . . . . . . . . . . . . . . . Retrieved Matter . | . . . . . . . . . . . . . . . . . . . . . . . . . . . . . . . . . . . . Retrieved Components . | . . . . . . . . . . . . . . . . . . . . . . . . . . . . . . . . . . . . Parts Scanalyzed . | . . . . . . . . . . . . . . . . . . . . . . . . . . . . . . . . . . . . Part Schematics Acquired . | . . . . . . . . . . . . . . . . . . . . . . . . . . . . . . . . . . . . Parts Damaged . | . . . . . . . . . . . . . . . . . . . . . . . . . . . . . . . . . . . . Bothacking | -11 -10 -10 -9 -8 -7 -7 -7 -7 -6 -6 -6 -6 -6 -6 -5 -5 -5 -5 -5 -5 -4 -4 -4 -4 -4 -3 -3 -3 -3 -2 -2 -2 -1 -1 -1 ------------ Run | Scr Mat Min Mat Mat Fac Low Low Zio Pro Fac Ext Cet Arc Hub Fac Was Fac Upp Upp War Pro Fac Upp Upp Zhi Pro Res Arm Lab Res Qua Sec Acc Com Ac0 Used RIF Installer . | . . . . . . . . . . . . . . . . . . . . . . . . . . . . . . . . . . . . Robots Hacked . | . . . . . . . . . . . . . . . . . . . . . . . . . . . . . . . . . . . . Non-combat . | . . . . . . . . . . . . . . . . . . . . . . . . . . . . . . . . . . . . Combat . | . . . . . . . . . . . . . . . . . . . . . . . . . . . . . . . . . . . . Robot Hacks Applied . | . . . . . . . . . . . . . . . . . . . . . . . . . . . . . . . . . . . . Relay Couplers Released 3 | . . . . . . . . . . . . . . . . . . . . . . . . . . . 3 . . . . . . . . Programmers 3 | . . . . . . . . . . . . . . . . . . . . . . . . . . . 3 . . . . . . . . Fabnet Peak Effective % . | . . . . . . . . . . . . . . . . . . . . . . . . . . . . . . . . . . . . Robots Rewired 10 | . . . . . . . . . . . 10 . . . . . . . . . . . . . . . . . . . . . . . . Allies Hacked 3 | . . . . . . . . . . . . . . . . . . . . . . . . . . . . 3 . . . . . . . Hacks Repelled . | . . . . . . . . . . . . . . . . . . . . . . . . . . . . . . . . . . . . Allies | -11 -10 -10 -9 -8 -7 -7 -7 -7 -6 -6 -6 -6 -6 -6 -5 -5 -5 -5 -5 -5 -4 -4 -4 -4 -4 -3 -3 -3 -3 -2 -2 -2 -1 -1 -1 -------- Run | Scr Mat Min Mat Mat Fac Low Low Zio Pro Fac Ext Cet Arc Hub Fac Was Fac Upp Upp War Pro Fac Upp Upp Zhi Pro Res Arm Lab Res Qua Sec Acc Com Ac0 Total Allies 48 | . . . . 1 . . . 3 . 1 26 5 . 2 . . . . . . . 1 . . . . . 5 . . 1 . . 3 . Largest Group 14 | . . . . 1 . . . 3 2 1 13 14 4 3 . . . . . . . 1 . . . . . 4 . . 1 . . 3 . Highest-Rated Group 888 | . . . . 26 . . . 113 62 26 520 888 377 281 . . . . . . . 26 . . . . . 191 . . 45 . . 135 . Highest-Rated Ally 159 | . . . . 26 . . . 51 31 26 159 159 96 96 . . . . . . . 26 . . . . . 54 . . 45 . . 45 . Total Orders 37 | . . . . 1 . . . . . 1 1 1 . . . . . . . . . 1 . . . . . 4 . . 1 . . 6 21 STAY 14 | . . . . 1 . . . . . 1 1 1 . . . . . . . . . . . . . . . 2 . . . . . 5 3 ROAM 2 | . . . . . . . . . . . . . . . . . . . . . . 1 . . . . . . . . 1 . . . . FOLLOW 4 | . . . . . . . . . . . . . . . . . . . . . . . . . . . . 2 . . . . . 1 1 EXPLORE 13 | . . . . . . . . . . . . . . . . . . . . . . . . . . . . . . . . . . . 13 RETURN 4 | . . . . . . . . . . . . . . . . . . . . . . . . . . . . . . . . . . . 4 Ally Attacks 253 | . . . . . . . . . 9 . 93 81 47 6 . . . . . . . . . . . . . 17 . . . . . . . Total Damage 8069 | . . . . . . . . . 202 . 1882 3037 1696 216 . . . . . . . . . . . . . 1036 . . . . . . . Kills 34 | . . . . . . . . . . . 11 16 4 . . . . . . . . . . . . . . 3 . . . . . . . Allies Corrupted 1 | . . . . . . . . . . . . . . . . . . . . . . . . . . . . . . . . . . 1 . Allies Melted . | . . . . . . . . . . . . . . . . . . . . . . . . . . . . . . . . . . . . Intel | -11 -10 -10 -9 -8 -7 -7 -7 -7 -6 -6 -6 -6 -6 -6 -5 -5 -5 -5 -5 -5 -4 -4 -4 -4 -4 -3 -3 -3 -3 -2 -2 -2 -1 -1 -1 ------- Run | Scr Mat Min Mat Mat Fac Low Low Zio Pro Fac Ext Cet Arc Hub Fac Was Fac Upp Upp War Pro Fac Upp Upp Zhi Pro Res Arm Lab Res Qua Sec Acc Com Ac0 Robot Analysis Total 19 | . . 2 1 . . . . . . . . . . . . . . . . . . . . . 4 . . . . . . . 11 1 . Derelict Logs Recovered 11 | . . 1 . . . 1 2 1 . . . . . . . . . 2 2 . 1 . . 1 . . . . . . . . . . . Drone Launches 12 | . . . . . . . . . . . . . . . . . . . . . . . . . . . . . . . . . . . 12 Drone Recoveries 10 | . . . . . . . . . . . . . . . . . . . . . . . . . . . . . . . . . . . 10 Exploration | -11 -10 -10 -9 -8 -7 -7 -7 -7 -6 -6 -6 -6 -6 -6 -5 -5 -5 -5 -5 -5 -4 -4 -4 -4 -4 -3 -3 -3 -3 -2 -2 -2 -1 -1 -1 ------------- Run | Scr Mat Min Mat Mat Fac Low Low Zio Pro Fac Ext Cet Arc Hub Fac Was Fac Upp Upp War Pro Fac Upp Upp Zhi Pro Res Arm Lab Res Qua Sec Acc Com Ac0 Turns Passed 19826 | 5 29 229 353 134 399 522 332 497 692 753 1408 289 1016 516 155 20 275 100 281 576 473 688 321 160 61 742 530 372 203 238 396 291 352 5902 516 Spaces Moved 29100 | 3 56 404 448 237 974 785 742 1339 470 1434 1226 349 219 995 452 83 386 393 561 1261 703 1157 737 339 246 907 1017 555 440 319 277 458 525 8338 265 Core 1034 | 3 56 402 448 78 . . . 25 . . . . . . . . . . . . . . . . . . . . . . . . . 15 7 Treads 236 | . . . . . . . . . . . . . . . . . . . . . . . . . . . . . . . . . . 236 . Legs 1288 | . . 2 . . . . . . . . . . . . . . . . . . . . . . . . . . . . . . . 1028 258 Wheels . | . . . . . . . . . . . . . . . . . . . . . . . . . . . . . . . . . . . . Hover . | . . . . . . . . . . . . . . . . . . . . . . . . . . . . . . . . . . . . Flight 26542 | . . . . 159 974 785 742 1314 470 1434 1226 349 219 995 452 83 386 393 561 1261 703 1157 737 339 246 907 1017 555 440 319 277 458 525 7059 . Fastest Speed 11 | 50 50 50 50 29 26 26 26 26 26 26 26 26 26 27 24 24 24 24 24 24 24 20 20 20 20 20 20 17 14 20 20 11 17 17 50 Average Speed 29 | 50 50 50 51 37 27 26 26 26 26 26 26 26 36 27 24 24 30 24 24 24 24 21 20 20 20 20 20 19 19 20 20 18 17 36 103 Slowest Speed 1500 | 50 50 120 100 50 32 32 26 175 29 32 26 93 93 95 26 24 95 24 24 89 89 87 20 20 20 20 20 20 85 20 85 85 17 1500 178 Overloaded Moves 167 | . . . . . . . . . . . . . . . . . . . . . . . . . . . . 1 31 . . 135 . . . Propulsion Burnouts . | . . . . . . . . . . . . . . . . . . . . . . . . . . . . . . . . . . . . Robots Hopped 110 | . . . . 9 11 . . . . 6 14 . . 24 . . 1 . 1 . . 11 1 . . . 6 1 1 3 2 7 4 8 . Cave-ins Triggered 3 | . . . . . . . . . . . . . . . . . . . . . . . . . . . . . . . . . . 3 . Teleports 5 | . . . . . . . . . . . . . . . . . . . . . . . . . . . . 1 . . . 2 . 1 1 Exploration Rate (%) 55 | 2 19 81 40 22 36 86 69 85 64 38 88 69 82 48 15 78 11 73 70 90 78 41 63 58 62 70 34 38 100 15 43 41 24 95 57 Regions Visited 35 Branch Regions 23 Pre-discovered Areas 11 | . . 1 . . . . 1 4 . . . . . . . . . 1 . . . . . 1 3 . . . . . . . . . . Known Exits Taken 30 | . . 1 1 1 1 1 1 1 1 1 1 1 1 1 . . 1 1 1 1 1 1 1 1 1 1 1 1 1 1 1 1 1 . . Unknown Exits Taken 3 | 1 1 . . . . . . . . . . . . . . . . . . . . . . . . . . . . . . . . 1 . Scrap Searched 27 | . . 2 . . . 8 3 3 . . . . . . . . . 2 2 . 3 . 2 1 . 1 . . . . . . . . . Spaces Dug 485 | . . . . . . 7 22 . 34 10 16 . . 6 5 . 3 . 10 3 16 12 5 5 . 5 13 6 1 7 1 6 1 9 282 Terrain Destroyed 3314 | . . . 34 . . 7 22 . 34 10 42 12 . 6 5 . 3 . 10 134 17 12 5 5 . 7 15 6 1 7 1 6 1 898 2014 Melee 164 | . . . . . . 7 22 . 14 10 4 . . 6 5 . 3 . 10 3 14 12 3 3 . 4 13 6 1 7 1 6 1 9 . Projectile 2456 | . . . . . . . . . . . . . . . . . . . . . 3 . 2 2 . 3 2 . . . . . . 811 1633 AOE 694 | . . . 34 . . . . . 20 . 38 12 . . . . . . . 131 . . . . . . . . . . . . . 78 381 Terrain Rammed . | . . . . . . . . . . . . . . . . . . . . . . . . . . . . . . . . . . . . Walls Destroyed . | . . . . . . . . . . . . . . . . . . . . . . . . . . . . . . . . . . . . Machines Disabled . | . . . . . . . . . . . . . . . . . . . . . . . . . . . . . . . . . . . . Actions | -11 -10 -10 -9 -8 -7 -7 -7 -7 -6 -6 -6 -6 -6 -6 -5 -5 -5 -5 -5 -5 -4 -4 -4 -4 -4 -3 -3 -3 -3 -2 -2 -2 -1 -1 -1 --------- Run | Scr Mat Min Mat Mat Fac Low Low Zio Pro Fac Ext Cet Arc Hub Fac Was Fac Upp Upp War Pro Fac Upp Upp Zhi Pro Res Arm Lab Res Qua Sec Acc Com Ac0 Total 39580 | 9 56 428 557 273 1068 1073 845 1477 1009 1751 2276 514 1147 1188 486 82 534 395 687 1504 977 1549 898 419 257 1444 1304 800 546 460 608 629 775 11123 432 Wait 8922 | . . 16 68 30 67 265 76 113 517 272 956 139 910 185 21 . 140 . 113 168 247 332 147 70 . 517 242 233 61 113 317 128 247 2149 63 Move 28850 | 2 55 403 447 219 952 784 741 1338 469 1422 1197 348 218 950 452 82 383 392 558 1260 702 1134 734 338 245 906 1004 552 437 312 272 443 517 8318 264 Hop 102 | . . . . 8 10 . . . . 5 14 . . 20 . . 1 . 1 . . 11 1 . . . 6 1 1 3 2 7 3 8 . Pick Up 115 | 1 1 1 4 2 3 1 . . . 5 . 1 1 1 1 . . . . 14 2 13 2 . 1 . . . 10 . 1 5 . 35 10 Fast Attach 256 | . . 4 6 6 8 2 3 12 . 6 3 3 5 . 3 . 3 . 1 10 1 8 . . 3 . 4 1 4 1 2 5 . 146 6 Attach 79 | . . . 5 . 2 . . 1 1 2 . 1 1 . 2 . . . . 2 1 1 . . . . 2 1 3 . 1 8 3 29 13 Detach 175 | . . . 3 . 1 1 1 2 . 2 2 . 1 . . . . . . . . 1 . . . . 1 . 6 1 1 3 1 138 10 Swap 142 | . . . 8 1 1 5 . . 3 2 12 1 2 21 . . 1 2 3 4 3 9 6 5 3 8 7 3 2 14 4 6 . 4 2 Drop 297 | 6 . 3 7 7 6 2 1 11 . 4 3 2 5 1 . . 1 . . 21 3 10 2 . 5 . 1 1 13 . 4 9 . 153 16 Fire 103 | . . . 5 . . . . . 2 . 4 1 . . . . . . . 21 3 . 2 2 . 3 2 . . . 3 . . 8 47 Melee 338 | . . . 4 . 18 13 23 . 17 31 10 18 4 7 7 . 5 1 11 4 15 20 4 4 . 10 17 8 9 16 1 15 4 41 1 Ram . | . . . . . . . . . . . . . . . . . . . . . . . . . . . . . . . . . . . . Kick 1 | . . 1 . . . . . . . . . . . . . . . . . . . . . . . . . . . . . . . . . Crush . | . . . . . . . . . . . . . . . . . . . . . . . . . . . . . . . . . . . . Escape Stasis 158 | . . . . . . . . . . . 36 . . . . . . . . . . 10 . . . . 18 . . . . . . 94 . Rewire 38 | . . . . . . . . . . . 38 . . . . . . . . . . . . . . . . . . . . . . . . Trap 4 | . . . . . . . . . . . 1 . . 3 . . . . . . . . . . . . . . . . . . . . . Miscellaneous . | . . . . . . . . . . . . . . . . . . . . . . . . . . . . . . . . . . . . Route ------- -11/Scrapyard -10/Materials -10/Mines -9/Materials -8/Materials -7/Factory (discovered 3 exits: *Sto / *Low x2) -7/Lower Caves -7/Lower Caves (discovered 2 exits: *Fac / *Zio) -7/Zion -6/Proximity Caves -6/Factory (discovered 4 exits: *Fac x2 / Low / *Ext) -6/Extension (discovered 2 exits: *Fac / *Cet) -6/Cetus (discovered 2 exits: *Fac / *Arc) -6/Archives (discovered 3 exits: *Fac / *Hub x2) -6/Hub_04(d) (discovered 4 exits: *Fac x4) -5/Factory -5/Waste -5/Factory (discovered 2 exits: *Upp x2) -5/Upper Caves -5/Upper Caves (discovered 2 exits: *Fac / *War) -5/Warlord -4/Proximity Caves -4/Factory (discovered 5 exits: *Res x3 / *Upp x2) -4/Upper Caves -4/Upper Caves (discovered 2 exits: *Res / *Zhi) -4/Zhirov -3/Proximity Caves -3/Research (discovered 5 exits: *Res x2 / *Arm / Tes x2) -3/Armory (discovered 2 exits: Res / *Lab) -3/Lab -2/Research (discovered 2 exits: *Qua x2) -2/Quarantine (discovered 2 exits: *Acc / *Sec) -2/Section 7 -1/Access -1/Command (discovered 3 exits: [*Sur x2] / [*Ac0]) -1/Access_0 Near Former Tau Ceti IV History --------- Turn | Location | Event 5 | -11/Scrapyard | Discovered new exit (range 2) 6 | -11/Scrapyard | Entered Materials 28 | -10/Materials | Discovered new exit (range 15) 35 | -10/Materials | Entered Mines 178 | -10/Mines | A weapon hastily lodged in a ceiling crevice suddenly fell to the ground 225 | -10/Mines | Learned location of Zion (-7) 232 | -10/Mines | Found a damaged Exp. Sensor Array with a note attached 235 | -10/Mines | Found Prototype Device 235 | -10/Mines | Identified Exp. Sensor Array 259 | -10/Mines | Discovered new exit (range 8) 264 | -10/Mines | Identified exit to Materials 264 | -10/Mines | Entered Materials 264 | -9/Materials | Evolved 2 slots: Propulsion x2 305 | -9/Materials | Build established: Mutant 613 | -9/Materials | Discovered new exit (range 3) 614 | -9/Materials | Identified exit to Materials 617 | -9/Materials | Entered another Materials area 617 | -8/Materials | Evolved 2 slots: Utility x2 749 | -8/Materials | Discovered new exit (range 5) 750 | -8/Materials | Identified exit to Factory 751 | -8/Materials | Entered Factory 751 | -7/Factory | Evolved 2 slots: Utility x2 762 | -7/Factory | Identified exit to Storage 762 | -7/Factory | Identified exit to Lower Caves 1150 | -7/Factory | Entered Lower Caves 1193 | -7/Lower Caves | Build established: Scavenger-Scout 1236 | -7/Lower Caves | Lgt. Deuterium Engine stolen by Master Thief 1594 | -7/Lower Caves | Learned Factory interactive machine intel 1661 | -7/Lower Caves | Discovered new exit (range 14) 1664 | -7/Lower Caves | Identified exit to Lower Caves 1672 | -7/Lower Caves | Entered another Lower Caves area 1674 | -7/Lower Caves | Attracted the attention of an 0b10 checkpoint 1782 | -7/Lower Caves | Discovered new exit (range 5) 1936 | -7/Lower Caves | Learned 4 Factory zone layouts 1980 | -7/Lower Caves | Found Alien Artifact 1980 | -7/Lower Caves | Identified Core Expander 1980 | -7/Lower Caves | Installed Core Expander, added new Power slot 1988 | -7/Lower Caves | Discovered new exit (range 14) 1992 | -7/Lower Caves | Identified exit to Zion 2004 | -7/Lower Caves | Entered Zion 2034 | -7/Zion | Given the Hacking Drone Bay 2035 | -7/Zion | Discovered new exit (range 9) 2073 | -7/Zion | Learned location of 1 exit from Factory 2101 | -7/Zion | Learned location of Armory (-3) 2146 | -7/Zion | Learned location of Quarantine (-2) 2155 | -7/Zion | Learned location of Warlord (-5) 2191 | -7/Zion | Given A8's code to call for help 2232 | -7/Zion | Found Prototype Processor 2232 | -7/Zion | Identified Exp. Signal Interpreter 2234 | -7/Zion | Found Prototype Processor 2234 | -7/Zion | Identified Exp. Armor Integrity Analyzer 2236 | -7/Zion | Found Prototype Processor 2236 | -7/Zion | Identified Exp. Terrain Scan Processor 2323 | -7/Zion | Gained Derelict followers 2391 | -7/Zion | Found Prototype Device 2391 | -7/Zion | Identified Hacking Drone Bay 2490 | -7/Zion | Identified exit to Proximity Caves 2501 | -7/Zion | Entered Proximity Caves 2501 | -6/Proximity Caves | Accompanied by 3 allies 2543 | -6/Proximity Caves | Build established: Scout 3190 | -6/Proximity Caves | Attacked by a faux Warlord 3190 | -6/Proximity Caves | Discovered new exit (range 11) 3193 | -6/Proximity Caves | Identified exit to Factory 3193 | -6/Proximity Caves | Entered Factory 3193 | -6/Factory | Evolved 2 slots: Utility x2 3194 | -6/Factory | Identified exit to Extension 3195 | -6/Factory | Identified exit to Lower Caves 3196 | -6/Factory | Loaded intel: 53 interactive machine locations 3266 | -6/Factory | Repaired Katana 3395 | -6/Factory | Discovered new exit (range 8) 3397 | -6/Factory | Identified exit to Factory 3477 | -6/Factory | Discovered exit to Factory (range 21) 3837 | -6/Factory | Build established: Hacker-Scout 3946 | -6/Factory | Entered Extension 4209 | -6/Extension | Rescued a captive Derelict 4210 | -6/Extension | Rescued a captive Derelict 4210 | -6/Extension | Rescued a captive Derelict 4210 | -6/Extension | Rescued a captive Derelict 4349 | -6/Extension | Rescued a captive Derelict 4358 | -6/Extension | Rescued a captive Derelict 4383 | -6/Extension | Rescued a captive Derelict 4384 | -6/Extension | Rescued a captive Derelict 4386 | -6/Extension | Spotted B-75 Beast 4765 | -6/Extension | Spotted B-75 Beast 4770 | -6/Extension | Allies destroyed B-75 Beast 4870 | -6/Extension | Rescued A7 4875 | -6/Extension | Build established: Hacker-Sprinter 4989 | -6/Extension | Rescued a captive Derelict 4990 | -6/Extension | Rescued a captive Derelict 5016 | -6/Extension | Rescued a captive Derelict 5022 | -6/Extension | Rescued a captive Derelict 5115 | -6/Extension | Rescued a captive Derelict 5120 | -6/Extension | Rescued a captive Derelict 5208 | -6/Extension | Repaired Lgt. Fission Core 5279 | -6/Extension | Repaired Imp. Cesium-ion Thruster 5287 | -6/Extension | Discovered exit to Factory (range 10) 5287 | -6/Extension | Discovered new exit (range 6) 5298 | -6/Extension | Identified exit to Cetus 5354 | -6/Extension | Entered Cetus 5354 | -6/Cetus | Accompanied by 12 allies (A7) 5359 | -6/Cetus | Acquired a Cetus Manufacturing Module code from A7 5364 | -6/Cetus | Spotted Cetus Guard 5364 | -6/Cetus | Spotted Cetus Guard 5365 | -6/Cetus | Spotted Cetus Guard 5371 | -6/Cetus | Spotted Cetus Guard 5383 | -6/Cetus | Allies destroyed Cetus Guard 5387 | -6/Cetus | Allies destroyed Cetus Guard 5387 | -6/Cetus | Allies destroyed Cetus Guard 5388 | -6/Cetus | Allies destroyed Cetus Guard 5401 | -6/Cetus | Started Cetus Manufacturing Module 5426 | -6/Cetus | Manufactured an Enhanced Grunt 5434 | -6/Cetus | Discovered new exit (range 22) 5451 | -6/Cetus | Manufactured an Enhanced Grunt 5476 | -6/Cetus | Manufactured an Enhanced Grunt 5501 | -6/Cetus | Manufactured an Enhanced Grunt 5526 | -6/Cetus | Manufactured an Enhanced Grunt 5533 | -6/Cetus | Spotted Cetus Guard 5534 | -6/Cetus | Spotted Cetus Guard 5534 | -6/Cetus | Spotted Cetus Guard 5534 | -6/Cetus | Spotted Cetus Guard 5547 | -6/Cetus | Allies destroyed Cetus Guard 5553 | -6/Cetus | Allies destroyed Cetus Guard 5560 | -6/Cetus | Allies destroyed Cetus Guard 5560 | -6/Cetus | Allies destroyed Cetus Guard 5562 | -6/Cetus | Discovered exit to Factory (range 21) 5565 | -6/Cetus | Met Revision 17 5573 | -6/Cetus | Identified exit to Archives 5627 | -6/Cetus | Destroyed A7 5630 | -6/Cetus | Extracted ID and sensor layout for unrecognized location from A7's data core 5643 | -6/Cetus | Entered Archives 5643 | -6/Archives | Accompanied by 4 allies 5795 | -6/Archives | Discovered new exit (range 22) 5913 | -6/Archives | Discovered new exit (range 19) 5918 | -6/Archives | Discovered exit to Factory (range 22) 5959 | -6/Archives | Identified exit to Hub_04(d) 6371 | -6/Archives | Build established: Hacker-Scout 6659 | -6/Archives | Entered Hub_04(d) 6659 | -6/Hub_04(d) | Accompanied by 3 allies 6677 | -6/Hub_04(d) | Spotted B-75 Beast 6979 | -6/Hub_04(d) | Network Hub disabled 6980 | -6/Hub_04(d) | Spotted Lightning 7022 | -6/Hub_04(d) | Spotted Lightning 7175 | -6/Hub_04(d) | Entered Factory 7175 | -5/Factory | Evolved 2 slots: Propulsion x1, Utility x1 7330 | -5/Factory | Sucked down chute 7330 | -5/Factory | Entered Waste 7333 | -5/Waste | Spotted C-40 Crusher 7333 | -5/Waste | Spotted C-40 Crusher 7336 | -5/Waste | Spotted C-40 Crusher 7339 | -5/Waste | Spotted C-40 Crusher 7341 | -5/Waste | Spotted C-40 Crusher 7345 | -5/Waste | EMP discharged 7347 | -5/Waste | Spotted C-40 Crusher 7348 | -5/Waste | Discovered new exit (range 10) 7350 | -5/Waste | Identified exit to Factory 7350 | -5/Waste | Entered Factory 7369 | -5/Factory | Repaired Hrd. Light Armor Plating 7398 | -5/Factory | Repaired Mic. Fission Core 7453 | -5/Factory | Repaired Exp. Sensor Array 7564 | -5/Factory | Discovered new exit (range 20) 7583 | -5/Factory | Identified exit to Upper Caves 7625 | -5/Factory | Entered Upper Caves 7627 | -5/Upper Caves | Attracted the attention of an 0b10 checkpoint 7654 | -5/Upper Caves | Learned 8 Factory zone layouts 7678 | -5/Upper Caves | Discovered new exit (range 15) 7723 | -5/Upper Caves | Identified exit to Upper Caves 7725 | -5/Upper Caves | Entered another Upper Caves area 7741 | -5/Upper Caves | Discovered new exit (range 6) 7950 | -5/Upper Caves | Learned Factory terminal intel 7955 | -5/Upper Caves | Learned Factory garrison access intel 7992 | -5/Upper Caves | Discovered new exit (range 13) 8006 | -5/Upper Caves | Identified exit to Warlord 8006 | -5/Upper Caves | Entered Warlord 8013 | -5/Warlord | Discovered new exit (range 13) 8022 | -5/Warlord | System corruption cleaned by Quarantine Array 8066 | -5/Warlord | Learned 4 Armory zone layouts 8066 | -5/Warlord | Learned 4 Access zone layouts 8066 | -5/Warlord | Learned 4 Quarantine zone layouts 8066 | -5/Warlord | Learned Research stockpile data 8066 | -5/Warlord | Learned Factory fabricator intel 8066 | -5/Warlord | Learned Research repair station intel 8066 | -5/Warlord | Learned Research recycling unit intel 8120 | -5/Warlord | Warlord's base attacked by MAIN.C 8147 | -5/Warlord | Met Warlord 8166 | -5/Warlord | Found Prototype Piercing Weapon 8166 | -5/Warlord | Identified Vortex Lance 8191 | -5/Warlord | Found Prototype Device 8191 | -5/Warlord | Identified Exp. Phase Shifter 8199 | -5/Warlord | Found Prototype Processor 8201 | -5/Warlord | Found Prototype Hackware 8233 | -5/Warlord | Found Prototype Special Weapon 8234 | -5/Warlord | Found Prototype Special Weapon 8235 | -5/Warlord | Found Prototype Special Weapon 8236 | -5/Warlord | Found Prototype Special Weapon 8238 | -5/Warlord | Found Prototype Special Weapon 8259 | -5/Warlord | Spotted B-86 Titan 8260 | -5/Warlord | Identified RU-N14's Throwing Claymores v3 (x5) 8278 | -5/Warlord | Destroyed B-75 Beast 8295 | -5/Warlord | Destroyed B-86 Titan 8354 | -5/Warlord | P-80 Master assimilated allied I1-LNG(g) 8402 | -5/Warlord | Destroyed 9 combat bots 8470 | -5/Warlord | Warlord forces counterattacked 8472 | -5/Warlord | Spotted B-86 Titan 8476 | -5/Warlord | Spotted Executioner 8481 | -5/Warlord | Destroyed B-75 Beast 8481 | -5/Warlord | Destroyed Executioner 8485 | -5/Warlord | Destroyed B-86 Titan 8561 | -5/Warlord | Spotted Executioner 8562 | -5/Warlord | Destroyed Executioner 8580 | -5/Warlord | Identified exit to Proximity Caves 8582 | -5/Warlord | Entered Proximity Caves 8583 | -4/Proximity Caves | Destroyed 8 combat bots 8600 | -4/Proximity Caves | Learned Research emergency access door positions 9046 | -4/Proximity Caves | Discovered new exit (range 20) 9051 | -4/Proximity Caves | Identified exit to Factory 9055 | -4/Proximity Caves | Entered Factory 9055 | -4/Factory | Evolved 2 slots: Propulsion x1, Utility x1 9056 | -4/Factory | Identified exit to Research 9058 | -4/Factory | Loaded intel: 26 terminal locations 9059 | -4/Factory | Loaded intel: 6 fabricator locations 9060 | -4/Factory | Loaded intel: 4 garrison access locations 9144 | -4/Factory | Identified exit to Upper Caves 9198 | -4/Factory | Repaired Mic. Nuclear Core 9391 | -4/Factory | Discovered exit to Research (range 6) 9402 | -4/Factory | Identified Ghost Barrier 9402 | -4/Factory | Identified Spectral Analyzer 9480 | -4/Factory | Repaired Hrd. Light Armor Plating 9620 | -4/Factory | Repaired Broken Exp. Sensor Array 9653 | -4/Factory | Repaired Adv. Transmission Jammer 9743 | -4/Factory | Entered Upper Caves 9832 | -4/Upper Caves | Spotted B-86 Titan 10052 | -4/Upper Caves | Discovered new exit (range 11) 10054 | -4/Upper Caves | Identified exit to Upper Caves 10064 | -4/Upper Caves | Entered another Upper Caves area 10086 | -4/Upper Caves | Discovered exit to Research (range 14) 10214 | -4/Upper Caves | Discovered new exit (range 8) 10223 | -4/Upper Caves | Identified exit to Zhirov 10224 | -4/Upper Caves | Entered Zhirov 10224 | -4/Zhirov | Discovered new exit (range 3) 10228 | -4/Zhirov | Met Zhirov 10232 | -4/Zhirov | Learned location of Testing (-3) 10232 | -4/Zhirov | Learned location of Command (-1) 10233 | -4/Zhirov | Zhirov requested help retrieving the SGEMP Prototype 10237 | -4/Zhirov | Found Alien Artifact 10237 | -4/Zhirov | Identified Integrated Reactor 10237 | -4/Zhirov | Installed Integrated Reactor, increased core energy generation (+10) 10266 | -4/Zhirov | Identified exit to Proximity Caves 10277 | -4/Zhirov | Found Alien Artifact 10285 | -4/Zhirov | Entered Proximity Caves 10921 | -3/Proximity Caves | Received a Behemoth hack from an annoying Tinkerer 10988 | -3/Proximity Caves | Snuck into a huge 0b10 base via the rear entrance 11022 | -3/Proximity Caves | Discovered exit to Research (range 11) 11027 | -3/Proximity Caves | Entered Research 11027 | -3/Research | Evolved 2 slots: Utility x2 11030 | -3/Research | Loaded intel: 4 repair station locations 11031 | -3/Research | Loaded intel: 4 recycling unit locations 11094 | -3/Research | Discovered new exit (range 16) 11098 | -3/Research | Identified exit to Research 11227 | -3/Research | Revision forces began assault on 0b10 11270 | -3/Research | Repaired Hrd. Light Armor Plating 11291 | -3/Research | Build established: Hacker-Ninja 11303 | -3/Research | Met up with Revision 17++ 11427 | -3/Research | Identified exit to Armory 11427 | -3/Research | Identified exit to Testing 11553 | -3/Research | Discovered exit to Research (range 10) 11557 | -3/Research | Entered Armory 11558 | -3/Armory | Identified exit to Lab 11643 | -3/Armory | Fabricated P-70 Sage? 11794 | -3/Armory | Sage 8b assimilated hostile B-74 Champion 11861 | -3/Armory | Identified Transdimensional Reconstructor 11861 | -3/Armory | Warped through subspace to slip node 11864 | -3/Armory | Discovered exit to Research (range 18) 11929 | -3/Armory | Entered Lab 11929 | -3/Lab | Discovered exit to Research (range 9) 11932 | -3/Lab | Hidden lab's door opened automatically 11932 | -3/Lab | Sensor layout match revealed 11933 | -3/Lab | Gained access to the hidden lab's interior 12002 | -3/Lab | Detected for breach 12005 | -3/Lab | Unable to decrypt terminal 12009 | -3/Lab | Found Prototype Energy Cannon 12011 | -3/Lab | Identified Potential Cannon 12013 | -3/Lab | Found Prototype Energy Gun 12013 | -3/Lab | Identified Hyp. EM Gauss Rifle 12036 | -3/Lab | Found Alien Artifact 12041 | -3/Lab | Found Transdimensional Reconstructor 12067 | -3/Lab | Found Prototype Device 12073 | -3/Lab | Found Prototype Hackware 12081 | -3/Lab | Found Core Expander 12084 | -3/Lab | Confronted by A5 12084 | -3/Lab | Found Alien Artifact 12084 | -3/Lab | Identified Integrated Mediator 12084 | -3/Lab | Installed Integrated Mediator, increased core attachment efficiency. 12098 | -3/Lab | Disabled Active System Cloaker 12109 | -3/Lab | Unable to decrypt terminal 12110 | -3/Lab | Found Alien Artifact 12110 | -3/Lab | Identified LC Capacitor 12114 | -3/Lab | Identified Core Reset Matrix 12114 | -3/Lab | Used Core Reset Matrix 12117 | -3/Lab | MAIN.C forces arrive to investigate 12117 | -3/Lab | Discovered exit to Research (range 6) 12118 | -3/Lab | Sensed 1 artifact in vicinity 12132 | -3/Lab | Entered Research 12132 | -2/Research | Warlord forces began assault on 0b10 12132 | -2/Research | Evolved 2 slots: Weapon x2 12141 | -2/Research | Identified exit to Quarantine 12242 | -2/Research | Research machine network offline 12270 | -2/Research | Met up with Warlord 12370 | -2/Research | Entered Quarantine 12371 | -2/Quarantine | Detected hypermatrix surge 12371 | -2/Quarantine | Sensed 16 artifacts in vicinity 12385 | -2/Quarantine | Found Sigix Broadsword 12406 | -2/Quarantine | Build established: Hacker-Scout 12412 | -2/Quarantine | Identified AEGIS Remote Shield 12418 | -2/Quarantine | Found Hpw. Transdimensional Reconstructor 12420 | -2/Quarantine | Discovered new exit (range 24) 12458 | -2/Quarantine | Spotted Fortress 12483 | -2/Quarantine | Discovered new exit (range 5) 12483 | -2/Quarantine | Identified exit to Section 7 12766 | -2/Quarantine | Entered Section 7 12767 | -2/Section 7 | Sensed 24 artifacts in vicinity 12774 | -2/Section 7 | Spotted B-90 Cyclops 12777 | -2/Section 7 | Spotted S7 Guard 12781 | -2/Section 7 | Found Integrated Thermoelectric Network 12781 | -2/Section 7 | Installed Integrated Thermoelectric Network, gained heat-energy exchange potential 12799 | -2/Section 7 | Spotted S7 Guard 12881 | -2/Section 7 | Identified Deep Network Scanner 12888 | -2/Section 7 | Warped through subspace 12915 | -2/Section 7 | Warped through subspace 12915 | -2/Section 7 | Spotted Executioner 12915 | -2/Section 7 | Spotted Executioner 12933 | -2/Section 7 | Found Drained L-Cannon 12937 | -2/Section 7 | Installed L-Cannon capacitor 12948 | -2/Section 7 | Found Matter Drive 12960 | -2/Section 7 | Found Transdimensional Reconstructor 13038 | -2/Section 7 | Intercept squad dispatched 13044 | -2/Section 7 | Spotted Tracker 13044 | -2/Section 7 | Spotted Tracker 13050 | -2/Section 7 | Spotted B-99 Colossus 13051 | -2/Section 7 | Spotted Alpha 7 13051 | -2/Section 7 | Spotted Alpha 7 13053 | -2/Section 7 | Spotted B-90 Cyclops 13053 | -2/Section 7 | Spotted Combat Programmer 13055 | -2/Section 7 | Discovered new exit (range 18) 13057 | -2/Section 7 | Identified exit to Access 13057 | -2/Section 7 | Entered Access 13057 | -1/Access | Evolved 2 slots: Propulsion x1, Utility x1 13213 | -1/Access | Build established: Hacker-Ninja 13259 | -1/Access | Identified exit to Command 13265 | -1/Access | Spotted B-99 Colossus 13408 | -1/Access | Central database locked down 13409 | -1/Access | Entered Command 13587 | -1/Command | Disengaged cave seal 13587 | -1/Command | Derelicts emerged from the dark tunnel 13587 | -1/Command | Welcomed Warlord to Command 13695 | -1/Command | Crushed by falling debris 13696 | -1/Command | System corruption reached 10% 13726 | -1/Command | Lost 3 parts (1n2u) 13971 | -1/Command | P-80 Master assimilated allied MF-HVU(s) 14034 | -1/Command | Build established: Hacker-Sprinter 14406 | -1/Command | Warlord destroyed during the assault 14406 | -1/Command | Destroyed Warlord 14504 | -1/Command | Found Prototype Ballistic Cannon 14511 | -1/Command | Found Prototype Protection 14511 | -1/Command | Identified Exp. Powered Armor 14517 | -1/Command | Fired L-Cannon 14517 | -1/Command | 0b10 Conduit disabled 14520 | -1/Command | MAIN.C activated Command garrisons 14563 | -1/Command | Fired L-Cannon 14573 | -1/Command | Fired L-Cannon 14722 | -1/Command | Identified Blast Cannon 14730 | -1/Command | Phase Generator disabled 14780 | -1/Command | All MAIN.C guards destroyed 15065 | -1/Command | Build established: Hacker-Ninja 15615 | -1/Command | Crushed by falling debris 15751 | -1/Command | Found Prototype Energy Cannon 15751 | -1/Command | Identified Imp. Potential Cannon 15754 | -1/Command | Found Prototype Device 15754 | -1/Command | Identified Beam Splitter 15757 | -1/Command | Found Prototype Device 15757 | -1/Command | Identified Exp. Focal Shield 15922 | -1/Command | Build established: Alien-Ninja 16018 | -1/Command | Spotted B-99 Colossus 16041 | -1/Command | Discovered new exit (range 11) 16093 | -1/Command | Spotted B-99 Colossus 16164 | -1/Command | Found Unknown Device 16164 | -1/Command | Identified Adv. Force Booster 16203 | -1/Command | Spotted B-99 Colossus 16323 | -1/Command | Discovered new exit (range 14) 16338 | -1/Command | Found Prototype Processor 16338 | -1/Command | Identified Exp. Core Analyzer 16366 | -1/Command | Found Prototype Processor 16366 | -1/Command | Identified Exp. Targeting Computer 16512 | -1/Command | Found Prototype Reactor 16512 | -1/Command | Identified Vortex Chain Reactor 16882 | -1/Command | Build established: Alien-Assassin 17544 | -1/Command | Crushed by falling debris 17664 | -1/Command | Found Exp. Core Analyzer 17728 | -1/Command | Found Prototype Device 17728 | -1/Command | Identified Active Sensor Suite 17764 | -1/Command | Found Exp. Powered Armor 17766 | -1/Command | Found Prototype Ballistic Cannon 17766 | -1/Command | Identified Omega Cannon 17773 | -1/Command | Found Unknown Device 17773 | -1/Command | Identified Antimissile System 17779 | -1/Command | Found Prototype Device 17779 | -1/Command | Identified Exp. Transmission Jammer 17838 | -1/Command | Found Exp. Core Analyzer 17840 | -1/Command | Found Prototype Device 17840 | -1/Command | Identified Adv. Kinecellerator 17903 | -1/Command | Build established: Alien-Scout 17904 | -1/Command | Found Unknown Device 17904 | -1/Command | Identified Quantum Capacitor 17997 | -1/Command | Found Prototype Special Weapon 17997 | -1/Command | Identified Exp. Remote Datajack 18165 | -1/Command | Found Prototype Device 18165 | -1/Command | Identified Exp. ECM Suite 18199 | -1/Command | Found Exp. Core Analyzer 18453 | -1/Command | Found Prototype Ballistic Gun 18453 | -1/Command | Identified Multirail 18581 | -1/Command | Found Prototype Reactor 18581 | -1/Command | Identified Vortex Chain Reactor 18599 | -1/Command | Found Prototype Processor 18599 | -1/Command | Identified Exp. Target Analyzer 18608 | -1/Command | Found Exp. Targeting Computer 18853 | -1/Command | Build established: Alien-Mutant 19305 | -1/Command | Warped through subspace to slip node 19305 | -1/Command | Discovered new exit (range 5) 19311 | -1/Command | Entered Access_0 19312 | -1/Access_0 | Sensed 4 artifacts in vicinity 19312 | -1/Access_0 | Met Architect 19315 | -1/Access_0 | Architect warped through subspace 19317 | -1/Access_0 | Destroyed A8 19364 | -1/Access_0 | Architect warped through subspace 19410 | -1/Access_0 | Architect warped through subspace 19454 | -1/Access_0 | Architect warped through subspace 19494 | -1/Access_0 | Architect warped through subspace 19524 | -1/Access_0 | Fired L-Cannon 19524 | -1/Access_0 | Subspace Access Node disabled 19531 | -1/Access_0 | Fired L-Cannon 19546 | -1/Access_0 | Fired L-Cannon 19546 | -1/Access_0 | Architect warped through subspace 19546 | -1/Access_0 | Subspace Access Node disabled 19580 | -1/Access_0 | Architect warped through subspace 19595 | -1/Access_0 | A6 warped into view 19600 | -1/Access_0 | Fired L-Cannon 19600 | -1/Access_0 | Destroyed A6 19609 | -1/Access_0 | Fired L-Cannon 19609 | -1/Access_0 | Architect warped through subspace 19642 | -1/Access_0 | Architect warped through subspace 19666 | -1/Access_0 | Architect warped through subspace 19694 | -1/Access_0 | Architect warped through subspace 19721 | -1/Access_0 | Architect warped through subspace 19747 | -1/Access_0 | Architect warped through subspace 19765 | -1/Access_0 | Found Hpw. Transdimensional Reconstructor 19777 | -1/Access_0 | Architect warped through subspace 19785 | -1/Access_0 | Fired L-Cannon 19785 | -1/Access_0 | Subspace Access Node disabled 19793 | -1/Access_0 | Fired L-Cannon 19793 | -1/Access_0 | Subspace Access Node disabled 19820 | -1/Access_0 | Destroyed Architect 19821 | -1/Access_0 | Architect triggered a singularity event 19822 | -1/Access_0 | Warped through subspace to slip node 19822 | -1/Access_0 | Discovered new exit (range 8) 19824 | -1/Access_0 | Released all parts (20) 19827 | *** | Escaped singularity! Last Messages --------------- 19824_ Released Exp. Targeting Computer. 19824_ Released Enh. Biometal Leg. 19824_ Released Adv. Power Amplifier. 19824_ Released Lrg. Storage Unit. 19824_ Released Exp. Targeting Computer. 19824_ Released Exp. Core Analyzer. 19824_ Released Hdn. Centrium Leg. 19824_ Released Hdn. Centrium Heavy Treads. 19824_ Released Vortex Chain Reactor. 19824_ Released AEGIS Remote Shield. 19824_ Released Exp. Biometal Leg. 19824_ Released Adv. Weapon Cycler. 19824_ Released Centrium Medium Armor Plating. 19824_ Released Sigix Broadsword. 19824_ Released Imp. Potential Cannon. 19824_ Released Matter Drive. 19824_ Released Adv. Energy Well. 19825_ A0_COM: 7. 19826_ A0_COM: 6. 19827_ A0_COM: 5. Map ----- +----------------------------------------------------+ | | | | | | | | | | | | | | | | | | | | | | | | | | | | | | | | | ?????????????????????????????????????????????????? | | ?????????????????????????????????????????????????? | | ?????????????????????????????????????????????????? | | ?????????????????????????????????????????????????? | | ?????????????????????????????????????????????????? | | ?????????????????????????????????????????????????? | | ????????????????????????###??????????????????????? | | ???????????????????????## ##?????????????????????? | | ???????????????????????# #?????????????????????? | | ???????????????????????# @ #?????????????????????? | | ??????????????????????## #?????????????????????? | | ??????????????????????# #?????????????????????? | | ??????????????????????# ! ##?????????????????????? | | ??????????????????????##/]!#?????????????????????? | | ??????????????????????#!*=!#?????????????????????? | | ??????????????????????#!==##?????????????????????? | | ??????????????????????#!=!!#?????????????????????? | | ??????????????????????#!==##?????????????????????? | | ??????????????????????##=!#??????????????????????? | | ???????????????????????####??????????????????????? | | ?????????????????????????????????????????????????? | | ?????????????????????????????????????????????????? | | ?????????????????????????????????????????????????? | | ?????????????????????????????????????????????????? | | ?????????????????????????????????????????????????? | | ?????????????????????????????????????????????????? | | ?????????????????????????????????????????????????? | | ?????????????????????????????????????????????????? | | ?????????????????????????????????????????????????? | | ?????????????????????????????????????????????????? | | ?????????????????????????????????????????????????? | | ?????????????????????????????????????????????????? | | ?????????????????????????????????????????????????? | | ?????????????????????????????????????????????????? | +----------------------------------------------------+ Best States ------------- Heat Dissipation 83 Energy Generation 80 Energy Capacity 1200 Matter Stores 300 Matter Capacity 300 Sight Range 24 Robot Scan Range 20 Terrain Scan Range 20 Terrain Scan Density 1010 Jamming Range 16 Cloak Strength 3 Power Amplification 30 Additional Mass Support 16 Armor Coverage 1250 Resistance: KI 25 Resistance: TH 30 Core Shielding 30 Utility Shielding 66 Weapon Cycling 25 Phase Shifting 15 Evasion (%) 78 Targeting Accuracy 28 Melee Accuracy 8 Target Analysis 10 Core Analysis 12 Recoil Reduction 3 Kinecelleration 40 Offensive Hacking 53 Defensive Hacking 20 Trap Extractor Capacity 6 Item Schematics ----------------- None Robot Schematics ------------------ None Fabricated ------------ P-70 Sage | x2 | -3/Armory | Preloaded Alien Tech Used ----------------- Core Expander Integrated Reactor Transdimensional Reconstructor Integrated Mediator LC Capacitor Core Reset Matrix Sigix Broadsword Integrated Thermoelectric Network High-powered Transdimensional Reconstructor Drained L-Cannon Matter Drive L-Cannon Achievements -------------- None Challenges ------------ None Game ------ Seed HeartRestorationWell Manual? 0 Play Time 04:51:00 Cumulative 633.0 hours Start 2022.02.27 @ 10:09:52 End 2022.02.27 @ 18:20:06 Sessions 1 Manual Loads 0 Difficulty Rogue Special Mode None Game No. 292 Rogue 291 Adventurer 1 Explorer 0 Win Type 6 Total 65 Types 22/8/10/3/1/0/20/1/0 Lore% 96 Gallery% 99 Achievement% 87 Wizard Run 0 Options --------- ASCII 1 Keyboard 1 Movement Numpad Keybinds 0 Fullscreen 0 Font 18/Smallcaps Map View 76x50 Tactical HUD 1 Map Filters NONE Filters NONE Steam 1 RUN: 5e824e90-284c-4d25-93f8-aa998e6c97d1